Workbook

Sheet Index
A1: Contenu
A3: La fonction SI - simple
A4: La fonction SI - avec ET / OU
A5: La fonction SI - imbriquée
B6: Compte-épargne-si-simple
B7: Appels-si-simple
B8: Commande-si-simple
B9: Bonus-avec-a.r.
B10: Audit-fonction-OU
B11: Allocations-OU
B12: Audit-fonction-ET
B13: Liste-si-divers
B14: Si imbriqués
B15: Articles-si-imbriqués
B16: Prix-si-imbriqués
A17: RECHERCHEV et RECHERCHEH !!!
B18: Liste - salaires
B19: Liste-salaires-RECHERCHEV
B20: Liste-ventes
B21: Liste-ventes-RECHERCHEV
B22: Conversion-monnaie
B23: Valeur proche 1
B24: Valeur proche 2
B25: Exact ou proche 1 ?
B26: Exact ou proche 2 ?
B27: RECHERCHEH
B28: RECHERCHE
A29: Montants en devises (SI imbriqués + RECHERCHEV + SOMME.SI)
A30: RECHERCHEV avec des astérisques
A31: Fonctions d'erreur et d'information
B32: Exo simple avec ESTVIDE
B33: RECHERCHEV - SIERREUR 1
B34: RECHERCHEV - SIERREUR 2
B35: RECHERCHEV - SIERREUR 3
A36: Si le temps le permet :
B37: Arrondis-et-multiples
B38: Prix-arrondi.au.multiple
B39: Banque-arrondi.au.multiple
B40: Devis avec remise
A41: Spécial
B42: Fonction math : MOD et EST.PAIR/IMPAIR
B43: Fonction math : ENT
B44: Fonctions-texte
B45: Concaténer
B46: Inverse de concaténer (Assistant)
B47: Extraction-texte
B48: Extraction + Recherchev
B49: Date-et-texte
A50: Pour info : écart type
B51: Exemple bancaire

Sheet Compte-épargne-SI-simple
A1: Compte d'épargne
A2: Année | B2: Dépenses | C2: A payer
A3: 2011 | B3: 650
A4: 2012 | B4: 8850
A5: 2013 | B5: 10740
A6: 2014 | B6: 9990
A7: 2015 | B7: 10000
A8: 2016 | B8: 10420
A9: 2017 | B9: 6780
A10: 2018 | B10: 1200
A11: 2019 | B11: 19350
A24: Compte d'épargne
A25: =A2 -> Année | B25: Dépenses | C25: =C2 -> A payer
A26: 2011 | B26: 650 | C26: =IF(B26<=10000,50,"") -> 50
A27: 2012 | B27: 8850 | C27: =IF(B27<=10000,50,"") -> 50
A28: 2013 | B28: 10740
A29: 2014 | B29: 9990 | C29: 50
A30: 2015 | B30: 10000 | C30: 50
A31: 2016 | B31: 10420
A32: 2017 | B32: 6780 | C32: 50
A33: 2018 | B33: 1200 | C33: 50
A34: 2019 | B34: 19350

Sheet Appels
B3: ORDI-HELP SA
B4: Nous répondons toujours présents !
A7: Appels clients
B9: 2020-08-01
A10: Collaborateur | B10: Semaine 1 | C10: Semaine 2 | D10: Semaine 3 | E10: Semaine 4 | F10: Total appels | G10: Commentaire
A11: Marc Donzel | B11: 186 | C11: 165 | D11: 196 | E11: 189 | F11: =SUM(B11:E11) -> 736
A12: Tom Smith | B12: 132 | C12: 163 | D12: 145 | E12: 158 | F12: 598
A13: Paul Dupont | B13: 164 | C13: 178 | D13: 184 | E13: 163 | F13: 689
A14: Serena Durant | B14: 169 | C14: 152 | D14: 143 | E14: 197 | F14: 661
A15: Julie Aubert | B15: 195 | C15: 171 | D15: 164 | E15: 169 | F15: 699
A16: Charles Auberson | B16: 191 | C16: 175 | D16: 201 | E16: 176 | F16: 743
A17: Cathy Wilson | B17: 214 | C17: 212 | D17: 218 | E17: 197 | F17: 841
A18: Laurent Blumberg | B18: 218 | C18: 203 | D18: 194 | E18: 186 | F18: 801
A19: Totaux | B19: =SUM(B11:B18) -> 1469 | C19: =SUM(C11:C18) -> 1419 | D19: =SUM(D11:D18) -> 1445 | E19: =SUM(E11:E18) -> 1435 | F19: =SUM(F11:F18) -> 5768
A21: Moyenne | B21: =AVERAGE(F11:F18) -> 721
B32: =B9 -> 2020-08-01
A33: Collaborateur | B33: Semaine 1 | C33: Semaine 2 | D33: Semaine 3 | E33: Semaine 4 | F33: Total appels | G33: =G10 -> Commentaire
A34: Marc Donzel | B34: 186 | C34: 165 | D34: 196 | E34: 189 | F34: 736 | G34: =IF(F34>=$B$44,"au-dessus de la moyenne","") -> au-dessus de la moyenne
A35: Tom Smith | B35: 132 | C35: 163 | D35: 145 | E35: 158 | F35: 598 | G35: =IF(F35>=$B$44,"au-dessus de la moyenne","") -> 
A36: Paul Dupont | B36: 164 | C36: 178 | D36: 184 | E36: 163 | F36: 689
A37: Serena Durant | B37: 169 | C37: 152 | D37: 143 | E37: 197 | F37: 661
A38: Julie Aubert | B38: 195 | C38: 171 | D38: 164 | E38: 169 | F38: 699
A39: Charles Auberson | B39: 191 | C39: 175 | D39: 201 | E39: 176 | F39: 743 | G39: au-dessus de la moyenne
A40: Cathy Wilson | B40: 214 | C40: 212 | D40: 218 | E40: 197 | F40: 841 | G40: au-dessus de la moyenne
A41: Laurent Blumberg | B41: 218 | C41: 203 | D41: 194 | E41: 186 | F41: 801 | G41: au-dessus de la moyenne
A42: Totaux | B42: 1469 | C42: 1419 | D42: 1445 | E42: 1435 | F42: 5768
A44: Moyenne | B44: 721

Sheet Commande
B1: Commande
A3: Pièces | B3: Quantité Commandée | C3: Quantité Disponible | D3: Quantité Livrée | E3: Reste à livrer
A4: Stylo | B4: 50 | C4: 45
A5: Gomme | B5: 37 | C5: 51
A6: Crayon couleur | B6: 12 | C6: 15
A7: Crayon papier | B7: 75 | C7: 47
A8: Effaceur | B8: 8 | C8: 10
A9: Total | D9: =SUM(D4:D8) -> 0 | E9: =SUM(E4:E8) -> 0
A20: =A3 -> Pièces | B20: Quantité Commandée | C20: Quantité Disponible | D20: Quantité Livrée | E20: Reste à livrer
A21: Stylo | B21: 50 | C21: 45 | D21: =IF(B21>C21,C21,B21) -> 45 | E21: =IF(B21>C21,B21-C21,0) -> 5
A22: Gomme | B22: 37 | C22: 51 | D22: =IF(B22>C22,C22,B22) -> 37 | E22: =IF(B22>C22,B22-C22,0) -> 0
A23: Crayon couleur | B23: 12 | C23: 15 | D23: =IF(B23>C23,C23,B23) -> 12 | E23: =IF(B23>C23,B23-C23,0) -> 0
A24: Crayon papier | B24: 75 | C24: 47 | D24: =IF(B24>C24,C24,B24) -> 47 | E24: =IF(B24>C24,B24-C24,0) -> 28
A25: Effaceur | B25: 8 | C25: 10 | D25: =IF(B25>C25,C25,B25) -> 8 | E25: =IF(B25>C25,B25-C25,0) -> 0
A26: Total | D26: =SUM(D21:D25) -> 149 | E26: =SUM(E21:E25) -> 33
C28: D21 | D28: =SI(B21>C21;C21;B21)
C29: E21 | D29: =SI(B21>C21;B21-C21;0)

Sheet Bonus-avec-a.r.
B2: DUPONT | C2: DURAND | D2: MARTIN | E2: DUVAL | F2: AUBRY
B3: Juin | C3: Juin | D3: Juin | E3: Juin | F3: Juin
A4: Salaire de base | B4: 5000 | C4: 5000 | D4: 5000 | E4: 5000 | F4: 5000
A6: Ventes | B6: 10000 | C6: 7896.5 | D6: 11500 | E6: 10000 | F6: 8036
A7: Divers | B7: 456 | C7: 875 | D7: 750 | E7: 541 | F7: 796
A8: Ventes totales | B8: =SUM(B6:B7) -> 10456 | C8: =SUM(C6:C7) -> 8771.5 | D8: =SUM(D6:D7) -> 12250 | E8: =SUM(E6:E7) -> 10541 | F8: =SUM(F6:F7) -> 8832
A9: Pourcentage de prime
A11: Salaire avec prime | B11: =B4+(B8*B9) -> 5000 | C11: =C4+(C8*C9) -> 5000 | D11: =D4+(D8*D9) -> 5000 | E11: =E4+(E8*E9) -> 5000 | F11: =F4+(F8*F9) -> 5000
A13: objectif spécial | B13: 10500
A14: prime spéciale | B14: 0.03
A15: prime normale | B15: 0.02
B29: =B2 -> DUPONT | C29: DURAND | D29: MARTIN | E29: DUVAL | F29: AUBRY
B30: Juin | C30: Juin | D30: Juin | E30: Juin | F30: Juin
A31: Salaire de base | B31: 5000 | C31: 5000 | D31: 5000 | E31: 5000 | F31: 5000
A33: Ventes | B33: 10000 | C33: 7896.5 | D33: 11500 | E33: 10000 | F33: 8036
A34: Divers | B34: 456 | C34: 875 | D34: 750 | E34: 541 | F34: 796
A35: Ventes totales | B35: 10456 | C35: 8771.5 | D35: 12250 | E35: 10541 | F35: 8832
A36: Pourcentage de prime | B36: =IF(B35>=$B$40,$B$41,$B$42) -> 0.02 | C36: =IF(C35>=$B$40,$B$41,$B$42) -> 0.02 | D36: =IF(D35>=$B$40,$B$41,$B$42) -> 0.03 | E36: =IF(E35>=$B$40,$B$41,$B$42) -> 0.03 | F36: =IF(F35>=$B$40,$B$41,$B$42) -> 0.02
A38: =A11 -> Salaire avec prime | B38: =B31+(B35*B36) -> 5209.12 | C38: =C31+(C35*C36) -> 5175.43 | D38: =D31+(D35*D36) -> 5367.5 | E38: =E31+(E35*E36) -> 5316.23 | F38: =F31+(F35*F36) -> 5176.64
A40: =A13 -> objectif spécial | B40: 10500
A41: prime spéciale | B41: 0.03
A42: prime normale | B42: 0.02

Sheet Audit-fonction-OU
B2: Dépenses | C2: Résultat
A3: Janvier | B3: 25000
A4: Février | B4: 24800
A5: Mars | B5: 30000
A6: Avril | B6: 32000
A7: Mai | B7: 33000
A8: Juin | B8: 27000
B22: =B2 -> Dépenses | C22: Résultat
A23: Janvier | B23: 25000 | C23: =IF(OR(B23>30000,B23<25000),"problème","") -> 
A24: Février | B24: 24800 | C24: problème
A25: Mars | B25: 30000
A26: Avril | B26: 32000 | C26: problème
A27: Mai | B27: 33000 | C27: problème
A28: Juin | B28: 27000

Sheet Allocations-OU
B1: Vous êtes chargé de distribuer une allocation spéciale selon les critères suivants : Sfr. 1'000.00 aux personnes ayant un revenu inférieur à 40'000 OU à ceux ayant plus de 2 enfants. Les autres reçoivent Sfr. 500.00 d'allocations. | H1: © Corinne Leuba
A4: Nom | B4: Revenu annuel | C4: Nombre d'enfants | D4: Allocation | E4: Réponse macro | G4: Alloc. Max | H4: 1000
A5: Dupond | B5: 45000 | C5: 2 | G5: Alloc. Normale | H5: 500
A6: Dupont | B6: 55000 | C6: 2
A7: Durand | B7: 28000 | C7: 3
A8: Grand | B8: 121000 | C8: 4
A9: Grosjean | B9: 98000 | C9: 5
A10: Martin | B10: 18900 | C10: 3
A11: Michel | B11: 51500 | C11: 1
A12: Muller | B12: 66000 | C12: 2
A13: Petit | B13: 55000 | C13: 1
A14: Petitjean | B14: 57000 | C14: 1
A15: Rossi | B15: 29500 | C15: 0
A16: Sanchez | B16: 31000 | C16: 5
A17: Sancho | B17: 30000 | C17: 4
A19: Nombre d'allocations | B19: 10000
B20: 500
B21: Total : | C21: =SUM(C19:C20) -> 0 | D21: =SUM(D19:D20) -> 0

Sheet Audit-fonction-ET
B2: Dépenses | C2: Nombre d'employés | D2: Audit
A3: Janvier | B3: 25000 | C3: 45
A4: Février | B4: 24800 | C4: 44
A5: Mars | B5: 30000 | C5: 50
A6: Avril | B6: 32000 | C6: 55
A7: Mai | B7: 33000 | C7: 58
A8: Juin | B8: 27000 | C8: 49
A9: Juillet | B9: 50500 | C9: 80
A10: Août | B10: 60000 | C10: 90
B26: =B2 -> Dépenses | C26: Nombre d'employés | D26: Audit
A27: Janvier | B27: 25000 | C27: 45 | D27: =IF(AND(B27<=50000,C27<=70),"","travailleurs saisonniers") -> 
A28: Février | B28: 24800 | C28: 44 | D28: =IF(AND(B28<=50000,C28<=70),"","travailleurs saisonniers") -> 
A29: Mars | B29: 30000 | C29: 50
A30: Avril | B30: 32000 | C30: 55
A31: Mai | B31: 33000 | C31: 58
A32: Juin | B32: 27000 | C32: 49
A33: Juillet | B33: 50500 | C33: 80 | D33: travailleurs saisonniers
A34: Août | B34: 60000 | C34: 90 | D34: travailleurs saisonniers
B35: 50000 | C35: 71 | D35: travailleurs saisonniers
A37: * Ceci est vraiment un exercice juste pour pratiquer la combinaison d'un SI avec un OU extra simple
A38: car 1 possibilité échappe au OU et donne une réponse très "discutable" ! :
A39: dépenses = 50'000 et employés > 70

Sheet Liste-SI-divers
A1: Si simple ou en imbrication avec ET
A3: Nom | B3: Prénom | C3: Age | D3: Ville | E3: Salaire | F3: Test 1 GE ou Confédéré ? | G3: Test 2 Retraité ou non ? | H3: Test 3 Salaire moyen ? | I3: Test 4 Cadre GE actif ?
A4: Appolinaire | B4: Guillaume | C4: 45 | D4: Genève | E4: 5400
A5: Baudelaire | B5: Charles | C5: 21 | D5: Lausanne | E5: 6300
A6: Camus | B6: Albert | C6: 68 | D6: Genève | E6: 8000
A7: De Balzac | B7: Honoré | C7: 52 | D7: Genève | E7: 6100
A8: De Chateaubriand | B8: François-René | C8: 38 | D8: Neuchatel | E8: 6100
A9: Freud | B9: Sigmund | C9: 65 | D9: Lausanne | E9: 5800
A10: Hugo | B10: Victor | C10: 71 | D10: Genève | E10: 7200
A11: Kant | B11: Emmanuel | C11: 35 | D11: Neuchatel | E11: 3800
A12: Nietzche | B12: Friedrich | C12: 45 | D12: Fribourg | E12: 8500
A13: Racine | B13: Pierre | C13: 56 | D13: Genève | E13: 4300
A14: Rousseau | B14: Jean-Jacques | C14: 52 | D14: Fribourg | E14: 6800
A15: Sade | B15: Donatien | C15: 34 | D15: Genève | E15: 6700
A16: Sarte | B16: Jean-Paul | C16: 55 | D16: Fribourg | E16: 4200
A17: Zola | B17: Emile | C17: 80 | D17: Lausanne | E17: 6400
A19: Test 1 | B19: Si la personne habite Genève, alors inscrire "Genevois", sinon inscrire "Confédéré"
A20: Test 2 | B20: Si la personne est agée de plus de 65 ans, inscrire "Retraité", sinon afficher le nombre d'années lui restant avant la retraite
A21: Test 3 | B21: Si la personne gagne entre Frs 5'000 et 6'000, inscrire "Salaire cadre moyen", sinon ne rien inscrire
A22: Test 4 | B22: Si la personne est agée de moins de 65 ans, habite Genève et gagne plus de 6'000 francs :inscrire "cadre GE actif", sinon rien
A31: =A3 -> Nom | B31: =B3 -> Prénom | C31: Age | D31: Ville | E31: Salaire | F31: Test 1 GE ou Confédéré ? | G31: Test 2 Retraité ou non ? | H31: Test 3 Salaire moyen ? | I31: Test 4 Cadre GE actif ?
A32: =A4 -> Appolinaire | B32: =B4 -> Guillaume | C32: 45 | D32: Genève | E32: 5400 | F32: =IF(D32="Genève","Genevois","Confédéré") -> Genevois | G32: =IF(C32>65,"Retraité",65-C32) -> 20 | H32: =IF(AND(E32>5000,E32<6000),"Salaire cadre moyen","") -> Salaire cadre moyen | I32: =IF(AND(C32<65,D32="Genève",E32>6000),"cadre GE actif","") -> 
A33: =A5 -> Baudelaire | B33: Charles | C33: 21 | D33: Lausanne | E33: 6300 | F33: =IF(D33="Genève","Genevois","Confédéré") -> Confédéré | G33: =IF(C33>65,"Retraité",65-C33) -> 44 | H33: =IF(AND(E33>5000,E33<6000),"Salaire cadre moyen","") ->  | I33: =IF(AND(C33<65,D33="Genève",E33>6000),"cadre GE actif","") -> 
A34: =A6 -> Camus | B34: Albert | C34: 68 | D34: Genève | E34: 8000 | F34: =IF(D34="Genève","Genevois","Confédéré") -> Genevois | G34: =IF(C34>65,"Retraité",65-C34) -> Retraité | H34: =IF(AND(E34>5000,E34<6000),"Salaire cadre moyen","") ->  | I34: =IF(AND(C34<65,D34="Genève",E34>6000),"cadre GE actif","") -> 
A35: =A7 -> De Balzac | B35: Honoré | C35: 52 | D35: Genève | E35: 6100 | F35: =IF(D35="Genève","Genevois","Confédéré") -> Genevois | G35: =IF(C35>65,"Retraité",65-C35) -> 13 | H35: =IF(AND(E35>5000,E35<6000),"Salaire cadre moyen","") ->  | I35: =IF(AND(C35<65,D35="Genève",E35>6000),"cadre GE actif","") -> cadre GE actif

Sheet SI-Imbriqués
A3: On veut trois possibilités : erreur comptable - à réduire absolument - normal
B5: Dépenses | C5: Audit | D5: Réponse
A6: Janvier | B6: 25000
A7: Février | B7: 24800
A8: Mars | B8: 30000
A9: Avril | B9: 32000
A10: Mai | B10: 33000
A11: Juin | B11: 27000

Sheet Articles-SI-imbriqués
A1: Commande
A2: Article | B2: Mode | C2: Relais colis | D2: Ville | E2: Livraison - à transmettre au dpt concerné
A3: 5623.23 | B3: Jupe-femme | C3: Oui | D3: Genève
A4: 9643.25 | B4: Couette | C4: Non | D4: Genève
A5: 5632.85 | B5: Pantalon-homme | C5: Oui | D5: Lausanne
A6: 9653.24 | B6: Drap housse | C6: Non | D6: Lausanne
A7: 5523.58 | B7: Parure de lit | C7: Oui | D7: Genève
A8: 9325.23 | B8: Robe-femme | C8: Non | D8: Genève
A9: 5624.25 | B9: Veste-homme | C9: Oui | D9: Lausanne
A10: 9826.36 | B10: Drap housse | C10: inconnu | D10: Lausanne
A12: Si la commande concerne Jupe-femme : Rupture de stock momentanée
A13: Si la livraison est en Relais colis (Oui) : Livraison à votre adresse relais habituelle
A14: Si la livraison n'est pas en Relais colis (Non) : Livraison par courrier postal
A15: Autre cas : Infos non utilisables
A24: =A2 -> Article | B24: =B2 -> Mode | C24: Relais colis | D24: Ville | E24: =E2 -> Livraison - à transmettre au dpt concerné
A25: =A3 -> 5623.23 | B25: =B3 -> Jupe-femme | C25: Oui | D25: Genève | E25: =IF(B25="Jupe-femme","Rupture de stock momentanée",IF(C25="Oui","Livraison à votre adresse relais habituelle",IF(C3="Non","Livraison par courrier postal","Infos non utilisables"))) -> Rupture de stock momentanée
A26: =A4 -> 9643.25 | B26: Couette | C26: Non | D26: Genève | E26: =IF(B26="Jupe-femme","Rupture de stock momentanée",IF(C26="Oui","Livraison à votre adresse relais habituelle",IF(C4="Non","Livraison par courrier postal","Infos non utilisables"))) -> Livraison par courrier postal
A27: =A5 -> 5632.85 | B27: Pantalon-homme | C27: Oui | D27: Lausanne | E27: Livraison à votre adresse relais habituelle
A28: =A6 -> 9653.24 | B28: Drap housse | C28: Non | D28: Lausanne | E28: Livraison par courrier postal
A29: =A7 -> 5523.58 | B29: Parure de lit | C29: Oui | D29: Genève | E29: Livraison à votre adresse relais habituelle
A30: =A8 -> 9325.23 | B30: Robe-femme | C30: Non | D30: Genève | E30: Livraison par courrier postal
A31: =A9 -> 5624.25 | B31: Veste-homme | C31: Oui | D31: Lausanne | E31: Livraison à votre adresse relais habituelle
A32: =A10 -> 9826.36 | B32: Drap housse | C32: inconnu | D32: Lausanne | E32: Infos non utilisables

Sheet Prix-SI-imbriqués
A1: Prix
A3: Désignation | B3: Prix | C3: Origine E = Europe | D3: Poids en gr. | E3: Taxe | F3: Total
A4: Produit 1 | B4: 100 | C4: E | D4: 4000 | F4: =B4+E4 -> 100
A5: Produit 2 | B5: 200 | C5: E | D5: 6000 | F5: =B5+E5 -> 200
A6: Produit 3 | B6: 500 | C6: NON E | D6: 3000 | F6: =B6+E6 -> 500
A7: Produit 4 | B7: 300 | C7: NON E | D7: 8000 | F7: =B7+E7 -> 300
A21: Prix
A23: =A3 -> Désignation | B23: Prix | C23: Origine E = Europe | D23: Poids en gr. | E23: Taxe | F23: Total
A24: Produit 1 | B24: 100 | C24: E | D24: 4000 | E24: =IF(AND(C24="E",D24<=5000),B24*10%,IF(AND(C24="E",D24>5000),B24*15%,B24*25%)) -> 10 | F24: =B24+E24 -> 110
A25: Produit 2 | B25: 200 | C25: E | D25: 6000 | E25: =IF(AND(C25="E",D25<=5000),B25*10%,IF(AND(C25="E",D25>5000),B25*15%,B25*25%)) -> 30 | F25: =B25+E25 -> 230
A26: Produit 3 | B26: 500 | C26: NON E | D26: 3000 | E26: =IF(AND(C26="E",D26<=5000),B26*10%,IF(AND(C26="E",D26>5000),B26*15%,B26*25%)) -> 125 | F26: =B26+E26 -> 625
A27: Produit 4 | B27: 300 | C27: NON E | D27: 8000 | E27: =IF(AND(C27="E",D27<=5000),B27*10%,IF(AND(C27="E",D27>5000),B27*15%,B27*25%)) -> 75 | F27: =B27+E27 -> 375

Sheet Liste - salaires
A2: NO AVS | B2: NOM | C2: PRENOM | D2: DATE ENTREE | E2: SALAIRE BRUT
A3: 123.25.563.588 | B3: FERNAL | C3: Alain | D3: 2013-01-23 | E3: 25000
A4: 123.52.123.698 | B4: MAGNE | C4: Charles | D4: 2009-05-14 | E4: 15000
A5: 125.23.587.458 | B5: TRANSEN | C5: Jean | D5: 2017-02-12 | E5: 15000
A6: 146.96.256.546 | B6: DE PAUL | C6: Vincent | D6: 2012-11-15 | E6: 9000
A7: 156.98.569.231 | B7: HAULIT | C7: Amélie | D7: 2019-08-25 | E7: 8000
A8: 263.12.258.147 | B8: LESBAINS | C8: Amélie | D8: 2009-08-25 | E8: 6000
A9: 281.65.259.515 | B9: DRAK | C9: Ulla | D9: 2013-01-23 | E9: 10000
A10: 281.96.145.119 | B10: LEDEB-HOCHET | C10: Raphaël | D10: 2017-02-12 | E10: 8000
A11: 598.56.458.952 | B11: PASBON | C11: Vincent | D11: 2010-11-15 | E11: 8000
A12: 963.56.231.258 | B12: HIBULAIRE | C12: Pat | D12: 2008-03-16 | E12: 10000
A13: 987.56.231.247 | B13: HACHOU | C13: Pat | D13: 2008-03-16 | E13: 7000

Sheet Liste-salaires-RECHERCHEV
A3: No AVS | B3: Qui ?
A4: 281.65.259.515 | D4: Attention lors de la sélection de la table ! Avec la ligne des libellés (nom) ou sans ?
A5: 156.98.569.231
A6: 123.25.563.588
A7: 598.56.458.953
A10: No AVS | B10: En valeur exacte
A11: 281.65.259.515 | B11: =VLOOKUP(A11,'Liste - salaires'!$A$2:$E$13,2,FALSE) -> DRAK
A12: 156.98.569.231 | B12: =VLOOKUP(A12,'Liste - salaires'!$A$2:$E$13,2,FALSE) -> HAULIT
A13: 123.25.563.588 | B13: =VLOOKUP(A13,'Liste - salaires'!$A$2:$E$13,2,FALSE) -> FERNAL
A14: 598.56.458.953 | B14: =VLOOKUP(A14,'Liste - salaires'!$A$2:$E$13,2,FALSE) -> 
A17: No AVS | B17: En valeur approximative ou proche
A18: 281.65.259.515 | B18: =VLOOKUP(A18,'Liste - salaires'!$A$2:$E$13,2) -> DRAK
A19: 156.98.569.231 | B19: =VLOOKUP(A19,'Liste - salaires'!$A$2:$E$13,2) -> HAULIT
A20: 123.25.563.588 | B20: =VLOOKUP(A20,'Liste - salaires'!$A$2:$E$13,2) -> 
A21: 598.56.458.953 | B21: =VLOOKUP(A21,'Liste - salaires'!$A$2:$E$13,2) -> PASBON
A24: No AVS | B24: Avec une liste nommée
A32: Caractéristiques de la fonction RECHERCHEV :
B33: - la colonne "index" doit toujours être la première du tableau sélectionné (pas nécessairement la 1ère col. de la liste)
B34: - la fonction ne sait pas reconnaître la colonne B, I, J, L .. elle sait juste COMPTER les colonnes
B35: - la fonction ne peut pas chercher en "reculant" - elle va toujours depuis la colonne "index" vers la droite
B36: - si la fonction travaille en valeur exacte : l'ordre de la colonne "index" est indifférent - si elle travaille en valeur proche : elle doit être triée par ordre ascendant
A39: info suppl. | B39: - si la fonction travaille sur une liste qui est régulièrement mise à jour et à laquelle des lignes sont souvent ajoutées, alors il serait judicieux de nommer cette liste
B40: comme cela, il suffira de modifier les références associées à la zone nommée 1 seule fois ! et non dans chaque utilisation de la fonction !!!!

Sheet Liste-ventes
A2: Facture no | B2: Code Client | C2: Date Fact | D2: Qte | E2: Prix/unité | F2: Montant | G2: Vendeur | H2: Produit
A3: 100 | B3: 23 | C3: 2019-12-15 | D3: 1 | E3: 100.5 | F3: =D3*E3 -> 100.5 | G3: BRUNO | H3: EAO
A4: 101 | B4: 1 | C4: 2019-12-19 | D4: 3 | E4: 120.6 | F4: 361.8 | G4: FRANCOIS | H4: EAO
A5: 102 | B5: 5 | C5: 2020-01-12 | D5: 2 | E5: 111 | F5: 222 | G5: MICHEL | H5: Bureautique
A6: 103 | B6: 5 | C6: 2020-02-04 | D6: 4 | E6: 111.95 | F6: 447.8 | G6: BRUNO | H6: EAO
A7: 104 | B7: 23 | C7: 2020-02-25 | D7: 1 | E7: 88.5 | F7: 88.5 | G7: ARNAUD | H7: Langages
A8: 105 | B8: 58 | C8: 2020-03-05 | D8: 2 | E8: 77.3 | F8: 154.6 | G8: BRUNO | H8: EAO
A9: 106 | B9: 47 | C9: 2020-04-06 | D9: 3 | E9: 68.25 | F9: 204.75 | G9: ARNAUD | H9: Langages
A10: 107 | B10: 95 | C10: 2020-04-10 | D10: 7 | E10: 89.5 | F10: 626.5 | G10: MICHEL | H10: Langages
A11: 108 | B11: 23 | C11: 2020-04-13 | D11: 4 | E11: 95 | F11: 380 | G11: FRANCOIS | H11: EAO
A12: 109 | B12: 58 | C12: 2020-04-16 | D12: 3 | E12: 73.25 | F12: 219.75 | G12: BRUNO | H12: EAO
A13: 110 | B13: 1 | C13: 2020-04-19 | D13: 6 | E13: 84.75 | F13: 508.5 | G13: FRANCOIS | H13: Langages
A14: 111 | B14: 47 | C14: 2020-05-01 | D14: 12 | E14: 99.9 | F14: 1198.8 | G14: BRUNO | H14: Langages
A15: 112 | B15: 62 | C15: 2020-05-02 | D15: 13 | E15: 100.3 | F15: 1303.9 | G15: BRUNO | H15: Bureautique
A16: 113 | B16: 58 | C16: 2020-06-08 | D16: 8 | E16: 110 | F16: 880 | G16: MICHEL | H16: Jeux
A17: 114 | B17: 19 | C17: 2020-06-18 | D17: 1 | E17: 130.6 | F17: 130.6 | G17: ARNAUD | H17: Bureautique
A18: 115 | B18: 1 | C18: 2020-07-22 | D18: 1 | E18: 56.3 | F18: 56.3 | G18: FRANCOIS | H18: Bureautique
A19: 116 | B19: 85 | C19: 2020-07-25 | D19: 9 | E19: 25.9 | F19: 233.1 | G19: ARNAUD | H19: Bureautique
A20: 117 | B20: 85 | C20: 2020-08-01 | D20: 6 | E20: 25 | F20: 150 | G20: MICHEL | H20: Langages
A21: 118 | B21: 1 | C21: 2020-08-10 | D21: 4 | E21: 3 | F21: 12 | G21: BRUNO | H21: Bureautique
A22: 119 | B22: 23 | C22: 2020-09-13 | D22: 3 | E22: 49.5 | F22: 148.5 | G22: FRANCOIS | H22: Bureautique
A23: 120 | B23: 58 | C23: 2020-10-17 | D23: 8 | E23: 29.9 | F23: 239.2 | G23: ARNAUD | H23: EAO
A24: 121 | B24: 8 | C24: 2020-11-02 | D24: 2 | E24: 18.6 | F24: 37.2 | G24: MICHEL | H24: Bureautique
A25: 122 | B25: 8 | C25: 2020-12-30 | D25: 7 | E25: 88.9 | F25: 622.3 | G25: BRUNO | H25: Langages

Sheet Liste-ventes-RECHERCHEV
A3: Quelle vente (montant total) a été réalisée pour la facture :
C4: Réponse macro
A5: 106
A6: 112
A7: 120
A8: 125
A11: Quel est le montant de la première vente faite pour le client no :
C12: Réponse macro
A13: 1
A14: 58
A15: 73
A16: 43
A17: 8
A18: 95
A19: 88

Sheet Conversion-monnaie
A2: Monnaie | B2: Montant en monnaie étrangère | C2: Montant en Frs | D2: Réponse macro
A3: $ Mexique | B3: 1000 | F3: Taux de change fictif
A4: Kr Suède | B4: 1000 | F4: $ Etats-Unis | G4: 2
A5: $ Etats-Unis | B5: 1000 | F5: $ Mexique | G5: 3
A6: Kr Suède | B6: 1000 | F6: £ Angleterre | G6: 4
A7: £ Angleterre | B7: 2000 | F7: Kr Suède | G7: 5
A8: $ Mexique | B8: 5000
A9: Kr Suède | B9: 4000
A10: $ Etats-Unis | B10: 1000
A11: £ Angleterre | B11: 2000
A12: $ Mexique | B12: 8000
A13: EURO | B13: 1000

Sheet Valeur proche 1
A2: Lorsqu'il est nécessaire de laisser la fonction CHERCHER LA VALEUR LA PLUS PROCHE !
A4: M DANS CE CAS IL EST OBLIGATOIRE QUE LA COLONNE "INDEX"
A5: DE LA TABLE DE RECHERCHE SOIT TRIEE PAR ORDRE ASCENDANT !!!!!
G8: Table de recherche
A9: Date | B9: Prix | C9: Code | D9: Réponse macro | G9: Critère | H9: Code
A10: 2020-06-10 | B10: 150 | G10: 0 | H10: 1
A11: 2020-06-11 | B11: 352 | G11: 50 | H11: 2
A12: 2020-06-12 | B12: 12 | G12: 100 | H12: 3
A13: 2020-06-13 | B13: 99 | G13: 150 | H13: 4
A14: 2020-06-14 | B14: 101 | G14: 200 | H14: 5
A15: 2020-06-15 | B15: 151 | G15: 250 | H15: 6
A16: 2020-06-16 | B16: 487 | G16: 300 | H16: 7
A17: 2020-06-17 | B17: 403 | G17: 350 | H17: 8
G18: 400 | H18: 9
G19: 450 | H19: 10

Sheet Valeur proche 2
A2: Le nom de la banque dépend du taux d'intérêt !!! | F2: Taux | G2: Nom
F3: 0 | G3: Impossible ! Vous divaguez …
A4: Montant (hypothèque en France) | B4: 400000 | F4: 0.008 | G4: Banque du petit chançeux !
A5: Intérêt | B5: 0.03 | F5: 0.01 | G5: Banque normale
A6: Nombre d'années | B6: 20 | F6: 0.015 | G6: Banque des ogres
F7: 0.02 | G7: Gang de requins
A8: Echéancier de remboursement | F8: 0.03 | G8: Stop arnaque !!
A9: Année | B9: Intérêt | C9: Amortissement | D9: Annuité
A10: 1 | B10: =-IPMT($B$5,A10,$B$6,$B$4) -> 12000 | C10: =-PPMT($B$5,A10,$B$6,$B$4) -> 14886.28304 | D10: =-PMT($B$5,B6,$B$4) -> 26886.28304
A11: 3 | B11: 11093.42536 | C11: 15792.85768
A12: 5 | B12: 10131.64033 | C12: 16754.64271
A13: 7 | B13: 9111.28259 | C13: 17775.00045
A14: 9 | B14: 8028.785062 | C14: 18857.49798
A15: 11 | B15: 6880.363435 | C15: 20005.9196 | F15: * Correspond au paysage bancaire France pour hypothèque
A16: 13 | B16: 5662.002932 | C16: 21224.28011 | F16: ou Suisse pour crédit à la consommation
A17: 15 | B17: 4369.444273 | C17: 22516.83877
A18: 17 | B18: 2998.168792 | C18: 23888.11425
A19: 19 | B19: 1543.382635 | C19: 25342.9004
A20: 20 | B20: 783.0956225 | C20: 26103.18742

Sheet Exact ou proche 1
B1: Frais bancaires. Retrouvez les frais pour les mois indiqués. EXACT ou PROCHE ?
A3: Mois | B3: Dépenses | C3: Recettes | D3: Solde à nouveau | E3: Frais
A4: Janvier | B4: 65000 | C4: 75000 | D4: 55000 | E4: =IF(D4>=0,D4*0.001,-D4*0.00045) -> 55
A5: Février | B5: 85000 | C5: 13000 | D5: =D4+(C5-B5)-E4 -> -17055 | E5: 7.67475
A6: Mars | B6: 74000 | C6: 36000 | D6: -55062.67475 | E6: 24.77820364
A7: Avril | B7: 11000 | C7: 18000 | D7: -48087.45295 | E7: 21.63935383
A8: Mai | B8: 15500 | C8: 19000 | D8: -44609.09231 | E8: 20.07409154
A9: Juin | B9: 14200 | C9: 26000 | D9: -32829.1664 | E9: 14.77312488
A10: Juillet | B10: 8400 | C10: 95000 | D10: 53756.06048 | E10: 53.75606048
A11: Août | B11: 12000 | C11: 22000 | D11: 63702.30442 | E11: 63.70230442
A12: Septembre | B12: 13500 | C12: 26000 | D12: 76138.60211 | E12: 76.13860211
A13: Octobre | B13: 26000 | C13: 55000 | D13: 105062.4635 | E13: 105.0624635
A14: Novembre | B14: 8700 | C14: 42000 | D14: 138257.401 | E14: 138.257401
A15: Décembre | B15: 25000 | C15: 78000 | D15: 191119.1436 | E15: 191.1191436
A20: Quels sont nos frais pour :
C21: Réponse macro
A22: Février
A23: Juin
A24: Décembre

Sheet Exact ou proche 2
B1: Les gens sont classés selon leur grandeur. Indiquez leur catégorie : EXACT ou PROCHE ?
A3: Nom | B3: Taille | C3: Catégorie | D3: Réponse macro | F3: Taille | G3: Catégorie
A4: Dupond | B4: 1.52 | F4: 0 | G4: petit
A5: Dupont | B5: 1.73 | F5: 1.6 | G5: moyen
A6: Durand | B6: 1.69 | F6: 1.8 | G6: grand
A7: Grand | B7: 1.9
A8: Grosjean | B8: 1.63
A9: Martin | B9: 1.79
A10: Michel | B10: 1.77
A11: Muller | B11: 1.81
A12: Petit | B12: 1.85
A13: Petitjean | B13: 1.59
A14: Rossi | B14: 1.71
A15: Sanchez | B15: 1.63
A16: Sancho | B16: 1.79
A18: Nombre de : | B18: petit
A19: Nombre de : | B19: moyen
A20: Nombre de : | B20: grand

Sheet RECHERCHEH
B1: FONCTION RECHERCHEH
A2: Mois | B2: Ventes | C2: Code | D2: Réponse macro
A3: Janvier | B3: 3542
A4: Février | B4: 4563
A5: Mars | B5: 4123
A6: Avril | B6: 4236
A7: Mai | B7: 5412
A8: Juin | B8: 3256
A9: Juillet | B9: 4593
A10: Août | B10: 2356
A11: Septembre | B11: 1236
A12: Octobre | B12: 3524
A13: Novembre | B13: 3625
A14: Décembre | B14: 1452
A17: Table
A18: Ventes | B18: 1000 | C18: 1500 | D18: 2000 | E18: 2500 | F18: 3000 | G18: 3500 | H18: 4000 | I18: 4500 | J18: 5000 | K18: 5500 | L18: 6000
A19: Code | B19: 100 | C19: 200 | D19: 300 | E19: 400 | F19: 500 | G19: 600 | H19: 700 | I19: 800 | J19: 900 | K19: 1000 | L19: 1100

Sheet RECHERCHE
A1: FONCTION RECHERCHE
A2: Dans le second tableau affichez le nom et la catégorie des participant selon le n° de dossard avec les données du 1er tableau.
A4: Participants | B4: N° dossard | C4: Catégorie
A5: Catherine | B5: 125 | C5: Junior
A6: Claire | B6: 126 | C6: Cadet A
A7: Isabelle | B7: 127 | C7: Cadet B
A8: Philippe | B8: 128 | C8: Senior
A9: Jean | B9: 129 | C9: Cadet B
A10: Kevin | B10: 130 | C10: Junior
A11: Paul | B11: 131 | C11: Senior
A12: Marie | B12: 132 | C12: Cadet A
A13: Paola | B13: 133 | C13: Junior
A15: Temps | B15: N° dossard | C15: Participants | D15: Catégorie | E15: Réponse | F15: Réponse
A16: 22:33:00 | B16: 130
A17: 20:00:00 | B17: 132
A18: 21:44:00 | B18: 133
A19: 22:22:00 | B19: 131
A20: 19:44:00 | B20: 127
A24: Syntaxe
A25: Syntaxe : =RECHERCHE(valeur_cherchée;vecteur_recherche;vecteur_résultat) | E25: soit en plus "clair" ! :
A26: Syntaxe : =RECHERCHE(valeur_cherchée;colonne_"index";colonne-"retour")
A27: La syntaxe "matrice" - ne nous concerne pas ici
A29: Caractéristiques de la fonction
A30: La fonction cherche en valeur proche - pas de valeur exacte possible - ce qui implique donc que la colonne "index" DOIT être triée par ordre ascendant (sinon augmentation risque de #N/A)
A31: Si la valeur cherchée est plus petite que la première et donc plus petite valeur de la colonne "index" du tableau : la fonction retourne #N/A.
A32: Au lieu d'indiquer le numéro de la colonne, on utilise une plage de cellules pour indiquer la colonne "retour"

Sheet Devises - SI imbriqués
C1: Ceci correspond à un helpdesk fin 2019
A3: Quel était le but final visé ?
A4: La dame devait pouvoir additionner les montants en CHF / USD / EURO
A5: Dans sa colonne, les montants en CHF / USD / EURO devaient rester tels quels
A6: Les montants dans toutes les autres devises devaient être converties en CHF
A8: Montant | B8: Devise | C8: RCHERCHEV pour le montant final | D8: Etiquette de la devise | F8: SOMME.SI
A9: 1000 | B9: CHF | C9: =$A9*VLOOKUP(B9,$H$11:$I$19,2,FALSE) -> 1000 | D9: =IF(B9="USD","USD",IF(B9="EURO","EURO","CHF")) -> CHF | E9: CHF | F9: =SUMIF($D$9:$D$19,E9,$C$9:$C$19) -> 84500 | G9: =SOMME.SI($D$9:$D$19;E9;$C$9:$C$19)
A10: 2000 | B10: USD | C10: 2000 | D10: =IF(B10="USD","USD",IF(B10="EURO","EURO","CHF")) -> USD | E10: USD | F10: =SUMIF($D$9:$D$19,E10,$C$9:$C$19) -> 12000
A11: 3000 | B11: EURO | C11: 3000 | D11: EURO | E11: EURO | F11: 14000 | H11: Devise | I11: Change (fictif)
A12: 4000 | B12: GBP | C12: 2000 | D12: CHF | H12: CHF | I12: 1 | J12: 1 ==> pour les laisser tels quels
A13: 5000 | B13: NOK | C13: 7500 | D13: CHF | H13: USD | I13: 1
A14: 6000 | B14: SEK | C14: 12000 | D14: CHF | H14: EURO | I14: 1
A15: 7000 | B15: JPY | C15: 21000 | D15: CHF | H15: GBP | I15: 0.5
A16: 8000 | B16: SGD | C16: 32000 | D16: CHF | H16: NOK | I16: 1.5
A17: 9000 | B17: CHF | C17: 9000 | D17: CHF | H17: SEK | I17: 2
A18: 10000 | B18: USD | C18: 10000 | D18: USD | H18: JPY | I18: 3
A19: 11000 | B19: EURO | C19: 11000 | D19: EURO | H19: SGD | I19: 4
B21: Pour obtenir le montant | C21: =$A9*RECHERCHEV(B9;$H$11:$I$19;2;FAUX)
C23: Pour obtenir le libellé correct de la devise | D23: =SI(B9="USD";"USD";SI(B9="EURO";"EURO";"CHF"))
D25: Quel raisonnement pour choisir le type de SI ?
D26: Si c'est CHF ou USD ou EURO ==> CHF | H26: Le hic il y a 3 conditions pour 1 resultat possible and ce n'est pas ce que l'on veut
D27: Si c'est USD ==> USD; si c'est EURO ==> EURO et pour tous les autres cas ==> CHF (donc y compris le CHF d'origine)

Sheet Recherchev avec astérisques
A1: FONCTION RECHERCHEV avec astérisques
A3: Voici une liste de fournisseurs que JULES gère régulièrement
G4: Noms partiels | H4: Saisir le départ sur 2 | I4: Remplissage inst. | J4: RECHERCHEV
A5: Fournisseurs | G5: ACTIVE TECH | H5: *ACTIVE TECH* | I5: *ACTIVE TECH* | J5: =VLOOKUP(I5,$A$6:$A$39,1,0) -> ACTIVE TECH SA
A6: AB AGATHES SA | G6: ALTMANN | H6: *ALTMANN* | I6: *ALTMANN* | J6: =VLOOKUP(I6,$A$6:$A$39,1,0) -> ALTMANN AG
A7: ACTIVE TECH SA | G7: DECOS SA | I7: *DECOS SA* | K7: Pas trouvé …. C'est que la différence de saisie
A8: AFFOLAM SA | G8: ARTIME | I8: *ARTIME* | J8: ARTIME AND EPOCH SA | K8: n'est pas limitiée à AVANT / APRES mais entre-deux
A9: AIGUILLES ROSES SA | G9: ARTISTIC | I9: *ARTISTIC* | J9: ARTISTIC SETTING SA | K9: Limite !!!!!
A10: ALPHATER SWISS GMBH | G10: ANNE GOUJON SA | I10: *ANNE GOUJON SA* | J10: ATELIER D'EMAIL ANNE GOUJON SA
A11: ALTMANN AG | G11: HOPE AND BELIEF | I11: *HOPE AND BELIEF* | J11: ATELIER HOPE AND BELIEF SA
A12: APEPO SA | G12: LAURENT DUPONT | I12: *LAURENT DUPONT* | J12: ATELIER LAURENT DUPONT
A13: ATOSPARTS AG
A14: ARQUOPAM SA
A15: ARSSOR HEROS SA | C15:  | D15: Ajouter un astérisque devant la donnée et après
A16: ARNANONI | D16: Le faire pour les deux premiers (sinon le remplissage instantané est "perdu")
A17: ARTS DECOS + D SA | D17: Clic sur le 2ème
A18: ARTISTIC SETTING SA | D18: Passer le REMPLISSAGE INSTANTANE
A19: ARTIME AND EPOCH SA
A20: ATELIER ANDRE PERREIRA SA | C20:  | D20: Faire une RECHERCHEV classique avec VALEUR EXACTE
A21: ATELIER D'EMAIL ANNE GOUJON SA | D21: C'est miraculeux : la recherche comprend la valeur "caractères possibles avant / après" (ce sont les vieux "joker DOS")
A22: ATELIER D'HORLOGERIE 23 SARL | D22: Mais çà marche !!!!!
A23: ATELIER JULES SIMAONO SARL
A24: ATELIER HOPE AND BELIEF SA
A25: ATELIER LAURENT DUPONT
A26: ATELIER VAURILLONNET
A27: ATOKAPPA
A28: AUBRY A.G.- PLASTIC AND GLASS
A29: AZURETTE TECHNOLOGIES SA
A30: BALON FRERES S.A.
A31: BAUMGARTNER MICROTECHNIK AG
A32: BAUDET INDUSTRIES SUISSE SA
A33: BELFONTAINE SA
A34: BERNESSA PRECISION SA
A35: BIBUSSEP METALS AG
A36: BIWITON SA
A37: BLANCCHOCOLATS SA
A38: BLOC'HORRIBLE SA
A39: BLOSCHETTE SA
A41: ETC … il y en a des centaines !

Sheet FONCTIONS ERREUR et INFORMATION
A3: Explications
A4: Les fonctions d'erreur permettent de déterminer si un calcul ou une fonction génère un résultat "en erreur". La plupart du temps, ce résultat ne provient pas d'une erreur mais simplement d'une information momentanément manquante
A5: Mais le message d'erreur (souvent #N/A ou #DIV/0!) est très moche et un utilisateur débutant peut fort bien faire un DELETE pour qu'il ne soit plus affiché … Dangereux !
A7: Dans les fonctions dites d'erreur se trouvent aussi des fonctions de "test" ou d'information comme ESTVIDE, ESTPAIR, ESTIMPAIR … fort pratiques
A8: Les fonctions d'erreur se retrouvent souvent combinées avec des fonctions de recherche.
A10: Exemple simple avec un ESTVIDE : (un formulaire à remplir)
A12: Le contrôle qualité sera à la charge du collaborateur suivant :
B14: […]
A16: Au fond du formulaire :
A17: =IF(ISBLANK(E12),"Vous avez oublié d'indiquer le collaborateur choisi","Merci d'avoir remplir ce formulaire") -> Vous avez oublié d'indiquer le collaborateur choisi
A19: A votre tour :
A23: A faire
A25: On divise le montant par le diviseur. Lorsque le diviseur manque : ce n'est pas un oubli, c'est comme çà
A27: Montant | B27: 100 | C27: 200 | D27: 300 | E27: 400 | F27: 500 | G27: 600
A28: Diviseur | B28: 5 | C28: 4 | F28: 4 | G28: 6
A29: Résultat | B29: =B27/B28 -> 20 | C29: =C27/C28 -> 50 | F29: 125 | G29: 100
A32: Refaire le calcul pour que la cellule n'affiche pas la valeur d'erreur …
A34: Montant | B34: 100 | C34: 200 | D34: 300 | E34: 400 | F34: 500 | G34: 600
A35: Diviseur | B35: 5 | C35: 4 | F35: 4 | G35: 6
A36: Résultat
A37: Résultat macro | B37: =IF(ISERROR(B34/B35),"",B34/B35) -> 20 | C37: =IF(ISERROR(C34/C35),"",C34/C35) -> 50 | F37: 125 | G37: 100
A39: Autres fonctions d'erreur
A40: =ESTVIDE(valeur) | B40: renvoie VRAI si la cellule est vide
A41: =ESTERR(valeur) | B41: renvoie VRAI si la fonction de la cellule retourne une valeur d'erreur comme #NUM!, #DIV/0! … mais pas #N/A
A42: =ESTNA(valeur) | B42: renvoie VRAI si la fonction de la cellule retourne la valeur d'erreur #N/A
A43: =ESTERREUR(valeur) | B43: renvoie VRAI si la fonction de la cellule retourne une valeur d'erreur (toutes y compris #N/A)
A45: =SIERREUR(valeur;valeur_si_erreur) | C45: ==> | D45: est-ce que la valeur testée est en erreur (fonction, calcul ….) ? Si oui alors définir la valeur à insérer (texte, rien …)
C46: exemple dans la feuille suivante
A48: voir liste complète …

Sheet RECHERCHEV - SIERREUR 1
J2: AVS/AI/APG
H3: 8500 | I3: 0.05116 | J3: Revenu annuel
A4: Recherchev simple | H4: 15000 | I4: 0.05237 | J4: compris entre
D5: % | E5: Total | F5: % | G5: Total | H5: 19200 | I5: 0.05359 | J5: 8'500 et 50'700
A6: AVS Jean | C6: à | E6: =B6*D6 -> 0 | F6: =VLOOKUP(B6,$H$3:$I$20,2) ->  | G6: =B6*F6 ->  | H6: 21300 | I6: 0.05481
A7: AVS Pierre | E7: =B7*D7 -> 0 | F7: =VLOOKUP(B7,$H$3:$I$20,2) ->  | G7: =B7*F7 ->  | H7: 23400 | I7: 0.05603
A8: AVS Marcel | B8: 58684 | E8: 0 | F8: 0.095 | G8: 5574.98 | H8: 25500 | I8: 0.05725
H9: 27600 | I9: 0.05967
H10: 29700 | I10: 0.06211
A11: Sans le #N/A | H11: 31800 | I11: 0.06455
D12: % | E12: Total | F12: % | G12: Total | H12: 33900 | I12: 0.06699
A13: AVS Jean | C13: à | E13: =B13*D13 -> 0 | F13: =IFERROR(VLOOKUP(B13,$H$3:$I$20,2),"") ->  | G13: =IFERROR(B13*F13,"") ->  | H13: 36000 | I13: 0.06942
A14: AVS Pierre | B14: 34067 | E14: =B14*D14 -> 0 | F14: =IFERROR(VLOOKUP(B14,$H$3:$I$20,2),"") -> 0.06699 | G14: =IFERROR(B14*F14,"") -> 2282.14833 | H14: 38100 | I14: 0.07186
A15: AVS Marcel | B15: 58684 | E15: 0 | F15: 0.095 | G15: 5574.98 | H15: 40200 | I15: 0.07551
H16: 42300 | I16: 0.07917
H17: 44400 | I17: 0.08283
H18: 46500 | I18: 0.08647
H19: 48600 | I19: 0.09013
H20: 50700 | I20: 0.095
A24: Note : on peut aussi utiliser ESTVIDE | D24: =IF(ISBLANK(B6),"",VLOOKUP(B6,$H$3:$I$20,2,1)) -> 
A26: Note : on peut aussi utiliser un SI - plus lourd mais juste | E26: =IF(ISERROR(VLOOKUP(B13,$H$3:$I$20,2,TRUE)),"",VLOOKUP(B13,$H$3:$I$20,2,TRUE)) -> 

Sheet RECHERCHEV - SIERREUR 2
A8: Liste 1 Nos PC aux USA | B8: Liste 2 Nos PC - Europe | C8: =RECHERCHEV(….) spécial : table de recherche : colonne 1 numéro de la colonne : 1 ! | D8: Avec un SIERREUR …. pour obtenir autre chose que des #N/A !)
C9: La fonction analyse le numéro du PC dans la liste 2 et indique si elle l'a trouvé dans la colonne 1. Elle retourne le numéro du PC dans la liste 1 | D9: La fonction RECHERCHEV retourne le no du PC mais si elle génère une erreur, la cellule n'affiche rien
A10: XL45 | B10: AB89 | C10: =VLOOKUP(B10,$A$10:$B$33,1,FALSE) ->  | D10: =IFERROR(VLOOKUP(B10,$A$10:$A$32,1,FALSE),"") -> 
A11: PC56 | B11: VN91 | C11: =VLOOKUP(B11,$A$10:$B$33,1,FALSE) ->  | D11: =IFERROR(VLOOKUP(B11,$A$10:$A$32,1,FALSE),"") -> 
A12: TS67 | B12: GZ67
A13: XL45 | B13: XL45 | C13: XL45 | D13: XL45
A14: PC56 | B14: PC56 | C14: PC56 | D14: PC56
A15: XO59 | B15: XL45 | C15: XL45 | D15: XL45
A16: XL47 | B16: PC56 | C16: PC56 | D16: PC56
A17: PC56 | B17: UT34 | C17: UT34 | D17: UT34
A18: TS67 | B18: AB89
A19: UX45 | B19: VX87
A20: UT34 | B20: XL47 | C20: XL47 | D20: XL47
A21: PC67 | B21: AB88
A22: PC89 | B22: VN91
A23: TS67 | B23: GZ67
A24: XO60 | B24: XL45 | C24: XL45 | D24: XL45
A25: XL48 | B25: TO45
A26: PC57 | B26: PC56 | C26: PC56 | D26: PC56
A27: TS68 | B27: PQ89
A28: UX46 | B28: RT87
A29: 345 | B29: 456 | C29: 456 | D29: 456
A30: 456 | B30: 345 | C30: 345 | D30: 345
A31: 345 | B31: 852
A32: 213 | B32: 213 | C32: 213 | D32: 213

Sheet Echéancier - SIERREUR 3
A2: =VLOOKUP(B5,$K$2:$L$6,2) -> Banque SuperAffaire | K2: Taux | L2: Nom
K3: 0 | L3: En plein délire !
A4: Montant | B4: 200000 | K4: 0.01 | L4: En plein délire !
A5: Intérêt | B5: 0.04 | K5: 0.02 | L5: Faut pas rêver - aucune banque ne prête à ce taux là !
A6: Nombre d'années | B6: 15 | K6: 0.03 | L6: Banque SuperAffaire
K7: 0.05 | L7: Banque Des Ogres
A8: Echéancier de remboursement | F8: Echéancier de remboursement | K8: 0.06 | L8: Gang de Requins
A9: Année | B9: Intérêt | C9: Amortissement | D9: Annuité | F9: Année | G9: Intérêt | H9: Amortissement | I9: Annuité | K9: 0.07 | L9: Stop Arnaque !!
A10: 1 | B10: =IFERROR(-IPMT($B$5,A10,$B$6,$B$4),"") -> 8000 | C10: =IFERROR(-PPMT($B$5,A10,$B$6,$B$4),"") -> 9988.220074 | D10: =-PMT(B5,B6,B4) -> 17988.22007 | F10: 1 | G10: =-IPMT($B$5,F10,$B$6,$B$4) -> 8000 | H10: =-PPMT($B$5,F10,$B$6,$B$4) -> 9988.220074 | I10: =-PMT(B5,B6,B4) -> 17988.22007
A11: 2 | B11: =IFERROR(-IPMT($B$5,A11,$B$6,$B$4),"") -> 7600.471197 | C11: 10387.74888 | F11: 2 | G11: =-IPMT($B$5,F11,$B$6,$B$4) -> 7600.471197 | H11: =-PPMT($B$5,F11,$B$6,$B$4) -> 10387.74888
A12: 3 | B12: 7184.961242 | C12: 10803.25883 | F12: 3 | G12: 7184.961242 | H12: 10803.25883
A13: 4 | B13: 6752.830889 | C13: 11235.38919 | F13: 4 | G13: 6752.830889 | H13: 11235.38919
A14: 5 | B14: 6303.415321 | C14: 11684.80475 | F14: 5 | G14: 6303.415321 | H14: 11684.80475
A15: 6 | B15: 5836.023131 | C15: 12152.19694 | F15: 6 | G15: 5836.023131 | H15: 12152.19694
A16: 7 | B16: 5349.935253 | C16: 12638.28482 | F16: 7 | G16: 5349.935253 | H16: 12638.28482
A17: 8 | B17: 4844.403861 | C17: 13143.81621 | F17: 8 | G17: 4844.403861 | H17: 13143.81621
A18: 9 | B18: 4318.651212 | C18: 13669.56886 | F18: 9 | G18: 4318.651212 | H18: 13669.56886
A19: 10 | B19: 3771.868458 | C19: 14216.35162 | F19: 10 | G19: 3771.868458 | H19: 14216.35162
A20: 11 | B20: 3203.214393 | C20: 14785.00568 | F20: 11 | G20: 3203.214393 | H20: 14785.00568
A21: 12 | B21: 2611.814166 | C21: 15376.40591 | F21: 12 | G21: 2611.814166 | H21: 15376.40591
A22: 13 | B22: 1996.757929 | C22: 15991.46214 | F22: 13 | G22: 1996.757929 | H22: 15991.46214
A23: 14 | B23: 1357.099443 | C23: 16631.12063 | F23: 14 | G23: 1357.099443 | H23: 16631.12063
A24: 15 | B24: 691.8546182 | C24: 17296.36546 | F24: 15 | G24: 691.8546182 | H24: 17296.36546
A25: =IF(ISERROR(IF(A24-$B$6=0,"",IF(A24-$B$6<0,A24+1))),"",IF(A24-$B$6=0,"",IF(A24-$B$6<0,A24+1))) ->  | B25: =IFERROR(-IPMT($B$5,A25,$B$6,$B$4),"") ->  | C25: =IFERROR(-PPMT($B$5,A25,$B$6,$B$4),"") ->  | F25: 16
B26: =IFERROR(-IPMT($B$5,A26,$B$6,$B$4),"") ->  | C26: =IFERROR(-PPMT($B$5,A26,$B$6,$B$4),"") ->  | F26: 17
F27: 18 | H27: =-PPMT($B$5,F27,$B$6,$B$4) -> 
F28: 19
F29: 20
F30: 21
F31: 22
F32: 23
F33: 24
F34: 25
F35: 26
F36: 27
F37: 28
F38: 29
F39: 30

Sheet Arrondis-et-multiples
H3: multiple choisi = 3
A4: nombre | B4: =ARRONDI | C4: =ARRONDI.INF | D4: =ARRONDI.SUP | F4: =TRONQUE | H4: nombre | I4: =ARRONDI.AU.MULTIPLE | J4: =PLANCHER | K4: =PLAFOND
A5: 52.121 | H5: 3
A6: 52.122 | H6: 4
A7: 52.123 | H7: 5
A8: 52.124 | H8: 6
A9: 52.125 | H9: 7
A10: 52.126 | H10: 8
A11: 52.127 | H11: 9
A12: 52.128 | H12: 10
A13: 52.129 | H13: 11
H23: multiple choisi = 3
A24: =A4 -> nombre | B24: =ARRONDI | C24: =ARRONDI.INF | D24: =ARRONDI.SUP | F24: =TRONQUE | H24: =H4 -> nombre | I24: =ARRONDI.AU.MULTIPLE | J24: =PLANCHER | K24: =PLAFOND
A25: 52.121 | B25: =ROUND(A25,2) -> 52.12 | C25: =ROUNDDOWN(A25,2) -> 52.12 | D25: =ROUNDUP(A25,2) -> 52.13 | F25: =TRUNC(A25,2) -> 52.12 | H25: 3 | I25: =MROUND(H25,3) -> 3 | J25: =FLOOR(H25,3) -> 3 | K25: =CEILING(H25,3) -> 3
A26: 52.122 | B26: 52.12 | C26: 52.12 | D26: 52.13 | F26: 52.12 | H26: 4 | I26: 3 | J26: 3 | K26: 6
A27: 52.123 | B27: 52.12 | C27: 52.12 | D27: 52.13 | F27: 52.12 | H27: 5 | I27: 6 | J27: 3 | K27: 6
A28: 52.124 | B28: 52.12 | C28: 52.12 | D28: 52.13 | F28: 52.12 | H28: 6 | I28: 6 | J28: 6 | K28: 6
A29: 52.125 | B29: 52.13 | C29: 52.12 | D29: 52.13 | F29: 52.12 | H29: 7 | I29: 6 | J29: 6 | K29: 9
A30: 52.126 | B30: 52.13 | C30: 52.12 | D30: 52.13 | F30: 52.12 | H30: 8 | I30: 9 | J30: 6 | K30: 9
A31: 52.127 | B31: 52.13 | C31: 52.12 | D31: 52.13 | F31: 52.12 | H31: 9 | I31: 9 | J31: 9 | K31: 9
A32: 52.128 | B32: 52.13 | C32: 52.12 | D32: 52.13 | F32: 52.12 | H32: 10 | I32: 9 | J32: 9 | K32: 12
A33: 52.129 | B33: 52.13 | C33: 52.12 | D33: 52.13 | F33: 52.12 | H33: 11 | I33: 12 | J33: 9 | K33: 12
A35: * ARRONDI.INF et TRONQUE semblent être identiques. Pour utilisation courante en
A36: bureautique : tout à fait interchangeables ! apparemment la différence se situerait quelque
A37: part côté maths très, très avancé ! Pas plus d'info - sorry !

Sheet Prix-arrondi.au.multiple
B6: Windows | C6: Word Base 1 | D6: Word Base 2 | E6: Excel Base 1 | F6: Excel Base 2 | G6: PowerPoint | H6: Outlook
A7: Prix d'achat | B7: 13.5 | C7: 21.5 | D7: 42.7 | E7: 21.7 | F7: 18.5 | G7: 15.3 | H7: 20.7
A8: Marge de bénéfice : 33% | B8: =B7*33% -> 4.455 | C8: =C7*33% -> 7.095 | D8: 14.091 | E8: 7.161 | F8: 6.105 | G8: 5.049 | H8: 6.831
A9: Prix de vente clientèle | B9: =SUM(B7:B8) -> 17.955 | C9: 28.595 | D9: 56.791 | E9: 28.861 | F9: 24.605 | G9: 20.349 | H9: 27.531
B22: =B6 -> Windows | C22: Word Base 1 | D22: Word Base 2 | E22: Excel Base 1 | F22: Excel Base 2 | G22: PowerPoint | H22: Outlook
A23: =A7 -> Prix d'achat | B23: =B7 -> 13.5 | C23: 21.5 | D23: 42.7 | E23: 21.7 | F23: 18.5 | G23: 15.3 | H23: 20.7
A24: Marge de bénéfice : 33% | B24: 4.455 | C24: 7.095 | D24: 14.091 | E24: 7.161 | F24: 6.105 | G24: 5.049 | H24: 6.831
A25: Prix de vente clientèle | B25: =MROUND(SUM(B23:B24),0.05) -> 17.95 | C25: 28.6 | D25: 56.8 | E25: 28.85 | F25: 24.6 | G25: 20.35 | H25: 27.55

Sheet Banque-arrondi.au.multiple
B1: Si solde positif : les frais sont de 1 pour mille Si solde négatif: les frais sont de 0.45 pour mille Les frais sont arrondis à 5ct | I1: © Corinne Leuba
A3: Mois | B3: Dépenses | C3: Recettes | D3: Solde à nouveau | E3: Frais
A4: Janvier | B4: 65000 | C4: 75000 | D4: 55000 | G4: Rappel : la fonction ARRONDI.AU.MULTIPLE ne peut pas travailler sur des
A5: Février | B5: 85000 | C5: 13000 | D5: =D4+(C5-B5)-E4 -> -17000 | G5: valeurs tantôt positives, tantôt négatives ….. Elles doivent être TOUTES positives ou TOUTES négatives
A6: Mars | B6: 74000 | C6: 36000 | D6: =D5+(C6-B6)-E5 -> -55000
A7: Avril | B7: 11000 | C7: 18000 | D7: -48000
A8: Mai | B8: 15500 | C8: 19000 | D8: -44500
A9: Juin | B9: 14200 | C9: 26000 | D9: -32700
A10: Juillet | B10: 8400 | C10: 95000 | D10: 53900
A11: Août | B11: 12000 | C11: 22000 | D11: 63900
A12: Septembre | B12: 13500 | C12: 26000 | D12: 76400
A13: Octobre | B13: 26000 | C13: 55000 | D13: 105400
A14: Novembre | B14: 8700 | C14: 42000 | D14: 138700
A15: Décembre | B15: 25000 | C15: 78000 | D15: 191700
A21: =A3 -> Mois | B21: Dépenses | C21: Recettes | D21: Solde à nouveau | E21: Frais
A22: Janvier | B22: 65000 | C22: 75000 | D22: 55000 | E22: =MROUND(IF(D22>=0,D22*0.001,-D22*0.00045),0.05) -> 55 | G22: =ARRONDI.AU.MULTIPLE(SI(D22>=0;D22*0.001;-D22*0.00045);0.05)
A23: Février | B23: 85000 | C23: 13000 | D23: =D22+(C23-B23)-E22 -> -17055 | E23: 7.65
A24: Mars | B24: 74000 | C24: 36000 | D24: =D23+(C24-B24)-E23 -> -55062.65 | E24: 24.8
A25: Avril | B25: 11000 | C25: 18000 | D25: -48087.45 | E25: 21.65
A26: Mai | B26: 15500 | C26: 19000 | D26: -44609.1 | E26: 20.05
A27: Juin | B27: 14200 | C27: 26000 | D27: -32829.15 | E27: 14.75
A28: Juillet | B28: 8400 | C28: 95000 | D28: 53756.1 | E28: 53.75
A29: Août | B29: 12000 | C29: 22000 | D29: 63702.35 | E29: 63.7
A30: Septembre | B30: 13500 | C30: 26000 | D30: 76138.65 | E30: 76.15
A31: Octobre | B31: 26000 | C31: 55000 | D31: 105062.5 | E31: 105.05
A32: Novembre | B32: 8700 | C32: 42000 | D32: 138257.45 | E32: 138.25
A33: Décembre | B33: 25000 | C33: 78000 | D33: 191119.2 | E33: 191.1

Sheet Devis avec remise
A1: =MROUND((XFA1*XFB1)*(1-XFC1),1) -> 0
A6: Devis N° : | B6: 1 | C6: Client : | D6: M. Dupont
A7: Date : | B7: 2020-01-31 | D7: Avenue Clément Ader
A8: Validité : | B8: =B7+90 -> 2020-04-30 | D8: 34170 Castelnau le Lez
A11: Titre : | B11: Prestation de service | E11: TVA | F11: 0.08
A13: Référence | B13: Libellé | C13: Prix unitaire HT | D13: Quantité | E13: Remise | F13: Total HT | G13: Réponse - ne rien écrire dans la colonne (macro) | I13: Astuce pour simplifier la fonction :
B14: Exemple de prestation | C14: 25 | D14: 2 | E14: 0.025 | G14: =MROUND((C14*D14)*(1-E14),1) -> 49 | I14: Au lieu de soustraire 3% du résultat
C15: 80 | D15: 2 | E15: 0.03 | G15: =MROUND((C15*D15)*(1-E15),1) -> 155 | I15: je multiplie par 1-le pourcentage, cela
F16: =ROUND((C16*D16)*(100-E16)/100,2) -> 0 | G16: 0 | I16: me donne directement Total - Remise
F17: 0 | G17: 0
F18: 0 | G18: 0
F19: 0 | G19: 0
F28: 0 | G28: 0
F29: 0 | G29: 0
F30: 0 | G30: 0
F31: 0 | G31: 0
F34: 0 | G34: 0
F35: 0 | G35: 0
F36: 0 | G36: 0
F37: 0 | G37: 0
F39: 0 | G39: 0
F40: 0 | G40: 0
F41: 0 | G41: 0
F42: 0 | G42: 0
F43: 0 | G43: 0
F44: 0 | G44: 0
F45: 0 | G45: 0
F46: 0 | G46: 0
F47: 0 | G47: 0
F48: 0 | G48: 0
F49: 0 | G49: 0
D50: Total HT : | F50: =SUM(F14:F49) -> 0 | G50: =SUM(G14:G49) -> 204
D51: TVA: | F51: =F50*TAUXTVA -> 0 | G51: =G50*TAUXTVA -> 16.32
D52: Total TTC : | F52: =F50+F51 -> 0 | G52: =G50+G51 -> 220.32
A55: Mon entreprise - Tel 04 99 13 32 00 - Fax 04 99 13 13 00 - info@batappli.ch

Sheet SPECIAL

Sheet EST.PAIR-EST.IMPAIR et MOD
B1: Comment faire analyser les nombres pairs ou impairs ?
A3: Nom | B3: Plaques | D3: Peut rouler avec EST.IMPAIR | E3: Peut rouler avec MOD | H3: EST.IMPAIR ?
A4: Dupond | B4: GE | C4: 12001 | G4: 67 | H4: =ISODD(G4) -> TRUE | I4: =EST.IMPAIR(G4)
A5: Dupont | B5: GE | C5: 92222 | G5: 68 | H5: =ISODD(G5) -> FALSE
A6: Durand | B6: GE | C6: 372854
A7: Grand | B7: GE | C7: 22666 | H7: Attention : ne pas confondre avec les fonctions PAIR et IMPAIR
A8: Grosjean | B8: GE | C8: 444445 | H8: qui arrondissent au nombre pair ou impair le plus proche
A9: Martin | B9: GE | C9: 71451
A10: Michel | B10: GE | C10: 410658 | H10: MOD ?
A11: Muller | B11: GE | C11: 333555 | G11: 67 | H11: =MOD(G11,2) -> 1 | I11: =MOD(G8;2)
A12: Petit | B12: GE | C12: 78909 | G12: 68 | H12: =MOD(G12,2) -> 0
A13: Petitjean | B13: VD | C13: 12121
A14: Rossi | B14: GE | C14: 10000 | H14: Un nombre impair divisé par 2 donne toujours 1 comme reste !
A15: Sanchez | B15: GE | C15: 402338 | H15: Un nombre pair divisé par 2 donne toujours 0 comme reste !
A16: Sancho | B16: GE | C16: 651224
A28: =A3 -> Nom | B28: =B3 -> Plaques | D28: =D3 -> Peut rouler avec EST.IMPAIR | E28: =E3 -> Peut rouler avec MOD
A29: =A4 -> Dupond | B29: GE | C29: 12001 | D29: =IF(ISODD(C29),"peut rouler","non") -> peut rouler | E29: =IF(MOD(C29,2)=1,"peut rouler","non") -> peut rouler
A30: Dupont | B30: GE | C30: 92222 | D30: non | E30: =IF(MOD(C30,2)=1,"peut rouler","non") -> non
A31: Durand | B31: GE | C31: 372854 | D31: non | E31: non
A32: Grand | B32: GE | C32: 22666 | D32: non | E32: non
A33: Grosjean | B33: GE | C33: 444445 | D33: peut rouler | E33: peut rouler
A34: Martin | B34: GE | C34: 71451 | D34: peut rouler | E34: peut rouler
A35: Michel | B35: GE | C35: 410658 | D35: non | E35: non
A38: Une utilisation TRES, TRES intéressante de la fonction MOD : la soustration d'heures "négatives"
A40: Arrivée | B40: Départ | C40: Temps de travail
A41: 08:00:00 | B41: 12:00:00 | C41: =B41-A41 -> 04:00:00 | D41: soustraction normale : OK
A42: 23:00:00 | B42: 05:00:00 | C42: =B42-A42 -> -0.75 | D42: soustraction normale : la catastrophe !!!!
A43: 23:00:00 | B43: 05:00:00 | C43: =MOD(B43-A43,1) -> 06:00:00 | D43: la même soustraction avec MOD : =MOD(B42-A42;1)
A45: Pourquoi ? Heu …… y-a-t-il un génie mathématicien dans cette salle ? Qu'importe CA MARCHE !!!!!

Sheet ENT
A2: Date d'aujourd'hui | B2: : | C2: =TODAY() -> 2022-07-08 | E2: rappel : =AUJOURDHUI()
A4: Ma date de naissance | B4: : | C4: 1961-04-05
A6: C'était un | B6: :
A8: Nombre de jours | B8: :
A11: Nombre d'années complètes | B11: : | E11: Attention : une année compte en fait 365.25 jours si on tient compte des années bisextiles etc …
E12: La fonction qui renvoie le nombre entier résultant d'une division (ENT)
A17: Date d'aujourd'hui | B17: : | C17: =TODAY() -> 2022-07-08 | E17: Rappel : =AUJOURDHUI()
A19: Ma date de naissance | B19: : | C19: =C4 -> 1961-04-05
A21: C'était un | B21: : | C21: =C6 -> 00:00:00 | E21: Pas de fonction - un simple format de cellule ! - jjjj
A23: Nombre de jours | B23: : | C23: =C17-C19 -> 22374 | E23: Soustraction : comment obtenir un nombre de jours plutôt qu'une date ?
E24: Astuce : ôter le format date (passer en "Standard"): on récupère le nombre de jours !
A26: Nombre d'années complètes | B26: : | C26: =INT(C23/365.25) -> 61 | E26: Fonction Integer =ENT((C26/365.25) | J26: =C26/365.25 | K26: =C23/365.25 -> 61.25667351
E27: Arrondi traditionnel ? Dangereux car ARRONDI(43.25;0)=43 mais ARRONDI(43.79;0)=44.
E28: Un ARRONDI.INF à 0 décimal serait mieux

Sheet Fonctions-texte
C2: En anglais
A3: =GAUCHE(nombre_ou_texte;nombre_de_caractères) | B3: Retourne le nombre de caractères spécifié depuis la gauche de la chaîne de texte | C3: LEFT
A4: Dupont Charles | B4: =LEFT(A4,6) -> Dupont
A5: 1000.56 | B5: =LEFT(A5,4) -> 1000
A7: =DROITE(nombre_ou_texte;nombre_de_caractères) | B7: Retourne le nombre de caractères spécifié depuis la droite de la chaîne de texte | C7: RIGHT
A8: Dupont Charles | B8: =RIGHT(A8,7) -> Charles
A9: 1000.56 | B9: =RIGHT(A9,2) -> 56
A11: =MAJUSCULE(texte) | B11: Affiche le contenu de la cellule en lettre MAJ | C11: UPPER
A12: =MINUSCULE(texte) | B12: Affiche le contenu de la cellule en lettre MIN | C12: LOWER
A13: =NOMPROPRE(texte) | B13: Affiche le contenu de la cellule 1ère lettre de chaque mot en MAJ | C13: PROPER
A14: paul | B14: =UPPER(A14) -> PAUL | F14: évite l'édition de la cellule et la correction manuelle
A15: PAUL | B15: =LOWER(A15) -> paul
A16: paul dupont - avenue aubert 43 | B16: =PROPER(A16) -> Paul Dupont - Avenue Aubert 43
A18: =NBCAR(nombre_ou_texte) | B18: Indique le nombre de caractères de la cellule | C18: LEN
A19: Dupont | B19: =LEN(A19) -> 6 | F19: pas utilisée seule mais en combinaison avec d'autres fonctions
A20: 1000 | B20: =LEN(A20) -> 4
A22: =TROUVE(caractère_cherché;chaîn_texte) | B22: Indique la position du caractère recherché dans la chaîne textuelle considérée | C22: FIND
A23: Charles Dupont | B23: =FIND("C",A23) -> 1 | F23: pas utiliséE seule mais en combinaison avec d'autres fonctions
A24: La fonction est sensible à la casse des lettres. Si vous cherchez la lettre c et non C : la fonction retournera une erreur CHERCHE fonctionne de façon identique mais n'est pas sensible à la casse.
A25: =CHERCHE(caractère_cherché;chaîn_texte) | B25: Indique la position du caractère recherché dans la chaîne textuelle considérée | C25: SEARCH
A26: Charles Dupont | B26: =SEARCH("c",A26) -> 1
A28: =STXT(text;no_départ;no_car) | B28: Renvoie le texte selon le départ choisi et le nombre de car. Définis | C28: MID
A29: Charles Dupont | B29: =MID(A29,1,7) -> Charles
A31: =SUPPRESPACE(texte) | B31: Òte tous les espaces en trop mais en laissant toujours un espace entre les mots | C31: TRIM
A32: Charles Dupont de Neuilly sur Seine | B32: =TRIM(A32) -> Charles Dupont de Neuilly sur Seine | F32: très utile dans les listes provenant d'exportations …
A34: =FRANC(nombre;nbre_de_décimales) | B34: Convertit un nombre en texte en lui ajoutant le format monétaire par défaut | C34: DOLLAR
A35: 1000 | B35: =DOLLAR(A35,2) -> 1'000.00 CHF | F35: évite d'éditer chaque cellule pour y rajouter l'apostrophe !
A37: =CNUM(chaîne_textuelle) | B37: convertit un texte en nombre | C37: VALUE
A38: 1000 | B38: =VALUE(B35) -> 1000 | F38: lorsque l'on récupère des nombres d'une base de données externes et que ceux-ci
A40: =CTXT(nombre;nombre_décimales;avec ou sans virgules) | B40: Arrondit le nombre indiqué au nombre de décimales spécifié avec ou sans virgules | C40: FIXED
A41: =CTXT(1235.569;2;FAUX) | B41: =FIXED(1235.569,2,FALSE) -> 1'235.57 | F41: when you retrieve number from an external source and
A43: =EXACT(valeur_texte1;valeur_ou_texte2) | B43: Compare deux nombres ou textes et retourne VRAI ou FAUX | C43: EXACT
E44: Liste 1 | F44: Liste 2 | G44: Exact ?
E45: XL45 | F45: AB89 | G45: =EXACT(E45,F45) -> FALSE
E46: PC56 | F46: VN91 | G46: FALSE
E47: TS67 | F47: GZ67 | G47: FALSE
E48: XL45 | F48: XL45 | G48: TRUE
E49: PC56 | F49: PC56 | G49: TRUE
E50: XO59 | F50: XL45 | G50: FALSE
E51: XL45 | F51: PC56 | G51: FALSE
E52: PC56 | F52: UT34 | G52: FALSE
A54: =TEXTE(valeur;format texte) le format = ceux d'Excel avec # et 0) | B54: Convertit un nombre en texte en lui appliquant le format défini
A55: 7560000002032 | B55: =TEXT(A55,"### #### #### ##") -> 756 0000 0020 32
B56: =TEXTE(A55;"### #### #### ##")
B58: Note : espace, tiret, apostrophe …. OK Point : pas comme çà … il faut mettre une barre oblique inversée devant
A60: 7560000002032 | B60: =TEXT(A60,"###\.####\.####\.##") -> 756.0000.0020.32
B61: =TEXTE(A55;"###\.####\.####\.##")

Sheet Concaténer
A2: Prénom | B2: Nom | C2: Age | D2: Prénom et Nom
A3: John | B3: Bonnet | C3: 36
A4: Laurent | B4: De Nardo | C4: 35
A5: Pierre | B5: Dudan | C5: 31
A6: François | B6: Dufour | C6: 29
A7: Charles | B7: Dupont | C7: 37
A8: Kentin | B8: Duval | C8: 38
A9: Mike | B9: Olaf | C9: 40
A10: Jean | B10: Rochefort | C10: 42
A19: Une fois le CONCATENER fait, il est évident que je souhaiterais me débarrasser
A20: si possible de la colonne A et B. Je n'ai pas envie de les masquer …
A21: Solution : il faut copier-coller la zone (on a l'impression de n'avoir rien fait !)
A22: But : voir le bouton des options de collage - choisir VALEUR avec ou sans format
A25: Prénom et Nom
A26: =A3&" "&B3 -> John Bonnet
A27: =A4&" "&B4 -> Laurent De Nardo
A28: Pierre Dudan
A29: François Dufour
A30: Charles Dupont
A31: Kentin Duval
A32: Mike Olaf
A33: Jean Rochefort

Sheet Scinder colonnes
A2: Booking Reference | B2: RTA Date & Time | C2: Booking Type | D2: Card Number | E2: Passenger | F2: Pick-up Address | G2: Destination Address | H2: Internet | I2: Driver Call Sign | J2: Journey Distance | K2: Wait Time (Mins)
A3: QF9577/1 | B3: 2013-09-09T08:57:00 | C3: ASAP | D3: 555467978 | E3: Keith Evans | F3: Paddington, Prebooked Taxi Rank, Paddington Station, W2, ,, ,, PADDINGTON | G3: Rimbello & Co Ltd, 3 Burlington Gardens, London, W1S 3EP | H3: Y | I3: H88 | J3: 3.1 | K3: 8
A4: QG4382/1 | B4: 2013-09-09T17:42:00 | C4: AB | D4: 555467978 | E4: Daniel Rimmel | F4: ABC Computers, 3 Burlington Gardens, London, W1S 3EP | G4: The R S A, 8 John Adam Street, London, WC2N 6EZ | I4: PA45 | J4: 1.6 | K4: 2
A5: QG6415/1 | B5: 2013-09-10T08:39:00 | C5: ASAP | D5: 555467978 | E5: Giuseppe Ferraro | F5: Paddington, Prebooked Taxi Rank, Paddington Station, W2, ,, ,, PADDINGTON | G5: Rimbello & Co Ltd, 3 Burlington Gardens, London, W1S 3EP | H5: Y | I5: PQ39 | J5: 2.6 | K5: 13
A6: QG8617/1 | B6: 2013-09-10T13:20:00 | C6: AB | D6: 555467978 | E6: Donald Kein | F6: ABC Computers, 3 Burlington Gardens, London, W1S 3EP | G6: New AgeArchitecture, Harella House, 90-98 Goswell Road, London, EC1V 7DF | I6: Y03 | J6: 4.1 | K6: 6
A7: QG6658/1 | B7: 2013-09-11T05:30:00 | C7: AB | D7: 555467978 | E7: Keith Evans | F7: Connaught Hotel, 16 Carlos Place, London, W1K 2AL | G7: Lap, Terminal 1, Taxi Information Desk, HOUNSLOW, Middx, ,, ,, LAP | H7: Y | I7: K30 | J7: 20.41 | K7: 0
A8: QH3169/1 | B8: 2013-09-11T07:10:00 | C8: AB | D8: 555467978 | E8: Giuseppe Ferraro | F8: Browns Hotel, 33 Albemarle Street, London, W1S 4BP | G8: Heathrow, Terminal One, Taxi Information Desk, London Heathrow Airport, Hounslow, Middlesex, TW6 1NJ | I8: PU48 | J8: 30.01 | K8: 22
A9: QH4532/1 | B9: 2013-09-11T11:00:00 | C9: AB | D9: 555467978 | E9: Amel Benton | F9: ABC Computers, 3 Burlington Gardens, London, W1S 3 | G9: Paddington Station, PreBooked Taxi Rank, Paddingto | I9: S46 | J9: 3.54 | K9: 0
A10: QK9883/1 | B10: 2013-09-16T09:11:00 | C10: ASAP | D10: 555467978 | E10: Keith Evans | F10: Paddington, Prebooked Taxi Rank, Paddington Station, W2, ,, ,, PADDINGTON | G10: Rimbello & Co Ltd, 3 Burlington Gardens, London, W1S 3EP | H10: Y | I10: R67 | J10: 2.6 | K10: 6
A11: QL2128/1 | B11: 2013-09-16T11:37:00 | C11: ASAP | D11: 555467978 | E11: Sally Nodilo | F11: ABC Computers, 3 Burlington Gardens, London, W1S 3EP | G11: Tertio, Unit 3, 2 More London Place, London, SE1 2DA | I11: PA21 | J11: 4 | K11: 6
A12: QL1607/1 | B12: 2013-09-17T11:00:00 | C12: AB | D12: 555467978 | E12: Keith Evans | F12: Rimbello & Co Ltd, 3 Burlington Gardens, London, W1S 3EP | G12: Thomson Reuters, 3 Dorset Rise, London, EC4Y 8EN | H12: Y | I12: PB91 | J12: 3 | K12: 5
A13: QN1538/1 | B13: 2013-09-18T08:15:00 | C13: AB | D13: 555467978 | E13: Keith Evans | F13: Connaught Hotel, 16 Carlos Place, London, W1K 2AL | G13: The Berkeley, Wilton Place, London, SW1X 7RL | H13: Y | I13: PM04 | J13: 1.6 | K13: 0
A14: QN4519/1 | B14: 2013-09-18T08:52:00 | C14: ASAP | D14: 555467978 | E14: Giuseppe Ferraro | F14: Paddington, Prebooked Taxi Rank, Paddington Station, W2, ,, ,, PADDINGTON | G14: The Berkeley, Wilton Place, London, SW1X 7RL | H14: Y | I14: R12 | J14: 5.7 | K14: 8
A15: QL9322/1 | B15: 2013-09-18T11:00:00 | C15: AB | D15: 555467978 | E15: Keith Evans | F15: The Berkeley, Wilton Place, London, SW1X 7RL | G15: Paddington, Prebooked Taxi Rank, Paddington Station, W2, ,, ,, PADDINGTON | H15: Y | I15: U54 | J15: 3.2 | K15: 5
A16: QN4800/1 | B16: 2013-09-18T15:45:00 | C16: AB | D16: 555467978 | E16: Virginie Korrean | F16: The Berkeley, Wilton Place, London, SW1X 7RL | G16: Heathrow, Terminal One, Arrivals, London Heathrow | I16: AS96 | J16: 2.58 | K16: 0
A17: QN7142/1 | B17: 2013-09-19T07:50:00 | C17: AB | D17: 555467978 | E17: Giuseppe Ferraro | F17: Connaught Hotel, 16 Carlos Place, London, W1K 2AL | G17: The Berkeley, Wilton Place, London, SW1X 7RL | I17: S34 | J17: 1.4 | K17: 11
A18: QN7048/1 | B18: 2013-09-19T12:00:00 | C18: AB | D18: 555467978 | E18: Giuseppe Ferraro | F18: ABC Computers, 3 Burlington Gardens, London, W1S 3EP | G18: Paddington Station, PreBooked Taxi Rank, Paddington Station, London, W2 1FG | I18: O28 | J18: 3 | K18: 18
A19: QT6370/1 | B19: 2013-09-25T14:50:00 | C19: AB | D19: 555467978 | E19: Philippe Weber | F19: Funding Circle, 3 Dorset Rise, London, EC4Y 8EN | G19: Paddington Station, PreBooked Taxi Rank, Paddington Station, London, W2 1FG | I19: PE71 | J19: 5.8 | K19: 8
A20: QT8325/1 | B20: 2013-09-25T15:07:00 | C20: ASAP | D20: 555467978 | E20: Keith Evans | F20: The White Circle Organisation Ltd, 60-62 Commercial Street, London, E1 6LT | G20: Paddington, Prebooked Taxi Rank, Paddington Station, W2, ,, ,, PADDINGTON | H20: Y | I20: B14 | J20: 15.81 | K20: 1
A21: QU1491/1 | B21: 2013-09-25T23:29:00 | C21: ASAP | D21: 555467978 | E21: Philippe Weber | F21: Dean town house, 69-71 Dean Street, London, W1D 3SE | G21: As Directed | I21: C96 | J21: 9.8 | K21: 4
A22: QU3516/1 | B22: 2013-09-26T12:00:00 | C22: AB | D22: 555467978 | E22: Virginie Korrean | F22: ABC Computers, 3 Burlington Gardens, London, W1S 3EP | G22: Paddington Station, PreBooked Taxi Rank, Paddington Station, London, W2 1FG | I22: PM04 | J22: 2.8 | K22: 7
A23: QU7945/1 | B23: 2013-09-27T00:12:00 | C23: ASAP | D23: 555467978 | E23: Philippe Weber | F23: The Shed, 22 Dean Street, London, W1D 3RX | G23: 174 Coombe Lane West, Kingston Upon Thames, Surrey, KT2 7DE | I23: PV45 | J23: 12.1 | K23: 0
A24: QW3456/1 | B24: 2013-09-30T14:00:00 | C24: AB | D24: 555467978 | E24: Philippe Weber | F24: ABC Computers, 3 Burlington Gardens, London, W1S 3EP | G24: Paddington Station, PreBooked Taxi Rank, Paddington Station, London, W2 1FG | I24: U32 | J24: 6 | K24: 6
A25: QC6740/1 | B25: 2013-09-03T07:30:00 | C25: AB | D25: 555361645 | E25: Nadia Bonnet | F25: 40 Chesilton Road, London, SW6 5AB | G25: Flat 2, 16 St James's Street, London, SW1A 1ER | H25: Y | I25: S50 | J25: 10.6 | K25: 3
A26: QD3252/1 | B26: 2013-09-04T05:10:00 | C26: AB | D26: 555361645 | E26: Nadia Bonnet | F26: 40 Chesilton Road, London, SW6 5AB | G26: Lap, Terminal 5, at Costa Coffee opp arrivals with n/board, HOUNSLOW, Middx, ,, ,, LAP | H26: Y | I26: H03 | J26: 16.81 | K26: 2
A27: QE6771/1 | B27: 2013-09-06T07:30:00 | C27: AB | D27: 555361645 | E27: Nadia Bonnet | F27: 40 Chesilton Road, London, SW6 5AB | G27: Chiccoza, 5A Burlington Gardens, London, W1S 3EP | H27: Y | I27: S50 | J27: 11.7 | K27: 5
A28: QH5420/1 | B28: 2013-09-11T12:45:00 | C28: AB | D28: 555361645 | E28: Nadia Bonnet | F28: ABC Computers, 3 Burlington Gardens, London, W1S 3EP | G28: Fleet Place House, 2 Fleet Place, London, EC4M 7RF | I28: PJ16 | J28: 3.1 | K28: 6
A29: QN9842/1 | B29: 2013-09-19T07:25:00 | C29: AB | D29: 555361645 | E29: Nadia Bonnet | F29: 40 Chesilton Road, London, SW6 5AB | G29: Chiccoza, 5A Burlington Gardens, London, W1S 3EP | H29: Y | I29: K53 | J29: 21.21 | K29: 2
A30: QT4077/1 | B30: 2013-09-25T07:50:00 | C30: AB | D30: 555361645 | E30: Nadia Bonnet | F30: 40 Chesilton Road, London, SW6 5AB | G30: Chiccoza, 5A Burlington Gardens, London, W1S 3EP | H30: Y | I30: B91 | J30: 4.64 | K30: 1
A31: QT5261/1 | B31: 2013-09-25T17:10:00 | C31: AB | D31: 555361645 | E31: Philippe Weber | F31: ABC Computers, 3 Burlington Gardens, London, W1S 3EP | G31: 69 Wilson Street, London, EC2A 2BB | I31: PR91 | J31: 4.6 | K31: 1
A32: QU1494/1 | B32: 2013-09-26T07:25:00 | C32: AB | D32: 555361645 | E32: Keith Evans | F32: 40 Chesilton Road, London, SW6 5AB | G32: Chiccoza, 5A Burlington Gardens, London, W1S 3EP | H32: Y | I32: T84 | J32: 5 | K32: 5
A33: QR9063/1 | B33: 2013-09-22T17:10:00 | C33: AB | D33: 555361637 | E33: Philippe Weber | F33: Paddington Station, PreBooked Taxi Rank, Paddington Station, London, W2 1FG | G33: Half Moon Street, London, W1J 7AY | I33: S18 | J33: 3.9 | K33: 3
A34: QT1401/1 | B34: 2013-09-24T17:00:00 | C34: AB | D34: 555361637 | E34: Virginie Korrean | F34: ABC Computers, 3 Burlington Gardens, London, W1S 3EP | G34: Paddington Station, PreBooked Taxi Rank, Paddington Station, London, W2 1FG | I34: C35 | J34: 2.9 | K34: 7
A35: QN7797/1 | B35: 2013-09-18T15:17:00 | C35: ASAP | D35: 555995236 | E35: Philippe Weber | F35: The Berkeley, Wilton Place, London, SW1X 7RL | G35: Heathrow, Terminal One, Arrivals, London Heathrow Airport, Hounslow, Middlesex, TW6 1NJ | I35: PA01 | J35: 15.71 | K35: 3
A36: QE1901/1 | B36: 2013-09-05T09:46:00 | C36: ASAP | D36: 556052321 | E36: François de Rouperton | F36: Kensington Lighting Co, 59 Kensington Church Street, London, W8 4BA | G36: 3-5 Burlington Gardens, London, W1S 3AZ | I36: R47 | J36: 4.3 | K36: 1
A37: QE3088/1 | B37: 2013-09-05T14:10:00 | C37: AB | D37: 556052321 | E37: François de Rouperton | F37: ABC Computers, 3 Burlington Gardens, London, W1S 3EP | G37: Heathrow, Terminal Five, Arrivals, London Heathrow Airport, Hounslow, Middlesex, TW6 2PZ | I37: PD86 | J37: 18.91 | K37: 5
A38: QE8116/1 | B38: 2013-09-06T10:01:00 | C38: ASAP | D38: 556052321 | E38: François de Rouperton | F38: Bullingham Mansions, Flat 42, Kensington Church Street, London, W8 4BE | G38: 3-5 Burlington Gardens, London, W1S 3AZ | I38: AS76 | J38: 3.6 | K38: 3
A39: QF9779/1 | B39: 2013-09-09T09:28:00 | C39: ASAP | D39: 556052321 | E39: Virginie Korrean | F39: Kensington Lighting Co, 59 Kensington Church Street, London, W8 4BA | G39: 3-5 Burlington Gardens, London, W1S 3AZ | I39: PX53 | J39: 3.8 | K39: 0
A40: QG6190/1 | B40: 2013-09-10T07:54:00 | C40: ASAP | D40: 556052321 | E40: Virginie Korrean | F40: Bullingham Mansions, Flat 42, Kensington Church Street, London, W8 4BE | G40: 3-5 Burlington Gardens, London, W1S 3AZ | I40: PZ14 | J40: 4.6 | K40: 0
A41: QH4432/1 | B41: 2013-09-11T09:50:00 | C41: ASAP | D41: 556052321 | E41: Virginie Korrean | F41: Bullingham Mansions, Flat 42, Kensington Church St | G41: Heathrow, Terminal Five, Arrivals, London Heathrow | I41: 20076 | J41: 20 | K41: 0
A42: QK9247/1 | B42: 2013-09-16T07:50:00 | C42: AB | D42: 556052321 | E42: Virginie Korrean | F42: Bullingham Mansions, Flat 42, Kensington Church Street, London, W8 4BE | G42: 3-5 Burlington Gardens, London, W1S 3AZ | I42: PD31 | J42: 4.6 | K42: 12
A43: QL6652/1 | B43: 2013-09-17T09:35:00 | C43: AB | D43: 556052321 | E43: Virginie Korrean | F43: Virgin Active Health Club, 17A Old Court Place, London, W8 4PL | G43: 3-5 Burlington Gardens, London, W1S 3AZ | I43: AQ39 | J43: 3.1 | K43: 2
A44: QL7306/1 | B44: 2013-09-17T10:30:00 | C44: AB | D44: 556052321 | E44: Virginie Korrean | F44: ABC Computers, 3 Burlington Gardens, London, W1S 3EP | G44: Heathrow, Terminal Five, Arrivals, London Heathrow Airport, Hounslow, Middlesex, TW6 2PZ | I44: PX83 | J44: 23.61 | K44: 0
A45: QN4356/1 | B45: 2013-09-18T09:15:00 | C45: AB | D45: 556052321 | E45: Virginie Korrean | F45: Bullingham Mansions, Flat 42, Kensington Church Street, London, W8 4BE | G45: ABC Computers, 3 Burlington Gardens, London, W1S 3EP | I45: PQ98 | J45: 5.3 | K45: 4
A46: QQ6609/1 | B46: 2013-09-19T19:42:00 | C46: ASAP | D46: 556052321 | E46: Virginie Korrean | F46: Heathrow, Terminal Five, Arrivals, London Heathrow Airport, Hounslow, Middlesex, TW6 2PZ | G46: Bullingham Mansions, Flat 42, Kensington Church Street, London, W8 4BE | I46: PE45 | J46: 28.61 | K46: 7
A47: QQ7521/1 | B47: 2013-09-20T05:10:00 | C47: AB | D47: 556052321 | E47: Virginie Korrean | F47: Bullingham Mansions, Flat 42, Kensington Church Street, London, W8 4BE | G47: Heathrow, Terminal Five, Arrivals, London Heathrow Airport, Hounslow, Middlesex, TW6 2PZ | I47: O87 | J47: 16.61 | K47: 6
A48: QS1076/1 | B48: 2013-09-23T07:30:00 | C48: AB | D48: 556052321 | E48: Virginie Korrean | F48: Bullingham Mansions, Flat 42, Kensington Church Street, London, W8 4BE | G48: As Directed | I48: C68 | J48: 2.8 | K48: 9
A49: QS7943/1 | B49: 2013-09-24T09:37:00 | C49: ASAP | D49: 556052321 | E49: Keith Evans | F49: Paddington Station, PreBooked Taxi Rank, Paddington Station, London, W2 1FG | G49: ABC Computers, 3 Burlington Gardens, London, W1S 3EP | I49: AQ33 | J49: 2.5 | K49: 11

Sheet Extraction-texte
A2: Prénom et Nom | B2: Age
A3: John Bonnet | B3: 36
A4: Johanna Dupont | B4: 35
A5: Pierre Dudan | B5: 31
A6: François Dufour | B6: 29
A7: Charles Dupont | B7: 37
A8: Kentin Duval | B8: 38
A9: Mike Olaf | B9: 40
A12: Prénom | B12: Nom
A23: Idéal et sans appel à des fonctions particulières : Sélectionner la colonne et lancer l'Assistant de conversion par DONNEES - CONVERTIR !
A24: Rapide, facile, confortable …..
A26: Mais enfin, si un jour vous ne pouvez pas utiliser DONNEES - CONVERTIR …. Vous pourrez toujours vous frotter à la solution ci-dessous :
A28: Prénom
A29: =LEFT(A3,FIND(" ",A3)) -> John | B29: Il faut sortir "par la gauche" les caractères correspondants au prénom
A30: Johanna | B30: =GAUCHE(A3;nombre de car. pour récupérer le prénom quelle que soit sa longueur)
A31: Pierre | B31: Nombre de caractères : jusqu'à l'espace donc : TROUVE(" ";A3)
A32: François
A33: Charles | B33: Final : =GAUCHE(A3;TROUVE(" ";A3))
A34: Kentin
A35: Mike
A37: Nom
A38: =RIGHT(A3,LEN(A3)-FIND(" ",A3)) -> Bonnet | B38: Le problème est un peu plus compliqué. Il faut sortir "par la droite" les caractères correspondants au nom
A39: Dupont | B39: =DROITE(A3;nombre de car. pour récupérer le nom quelle que soit sa longueur)
A40: Dudan | B40: =DROITE(A3;jusqu'au premier espace pour qu'un nom en 2 parties soit toujours récupéré : donc un TROUVE espace)
A41: Dufour | B41: Mais DROITE "recule depuis la droite" et TROUVE cherche toujours depuis la gauche !
A42: Dupont | B42: Donc il faut en fait reculer du nombre total de caractères - le nombre de caractères jusqu'à l'espace
A43: Duval
A44: Olaf | B44: Final : =DROITE(A3;NBCAR(A3)-TROUVE(" ";A3))

Sheet Extraction + Recherchev
A2: Le problème | B2: la personne a un fichier de base - le fichier 1. Il est tenu à jour régulièrement mais MANUELLEMENT
B3: Chaque semaine, elle reçoit une extraction d'une base de données - le fichier 2 - contenant les mêmes noms (parfois orthographiés autrement)
B4: + des autres noms qui devront pour certains être ajoutés au fichier 1
B5: dans ce fichier le nom n'est pas séparé du prénom
A6: Comment comparer les deux colonnes ?
A8: Fichier 1 - de base | F8: Copie de la colonne du fichier hebdomadaire | G8: Sortir le nom - sans laisser l'espace à la fin (-1 sert à cela) | H8: RECHERCHEV
A9: Nom | B9: Prénom | C9: Fils de | D9: Epouse de | F9: Nom
A10: Alban | B10: Fabienne | C10: Pierre | D10: prénom1 | F10: Bessèges Sandra | G10: =LEFT(F10,FIND(" ",F10)-1) -> Bessèges | H10: =VLOOKUP(G10,$A$10:$A$31,1,0) -> Bessèges | I10: ==> dans la colonne
A11: Allanches | B11: Jean-Pierre | C11: Paul | D11: prénom2 | F11: Aubert Alain | G11: =LEFT(F11,FIND(" ",F11)-1) -> Aubert | H11: =VLOOKUP(G11,$A$10:$A$31,1,0) -> Aubert
A12: Alvère | B12: Véronique | C12: Jean | D12: prénom3 | F12: De Nardo Jael | G12: De | I12: ==> pas dans la colonne - NEUF
A13: Alzon | B13: Catherine | C13: Jacques | D13: prénom4 | F13: Bugues Sam | G13: Bugues | I13: ==> en fait dans la colonne mais ortho différente
A14: Ambert | B14: Jaques | C14: Jules | D14: prénom5 | F14: Folch Martine | G14: Folch
A15: Astier | B15: Pascal | C15: Ahmed | D15: prénom6 | F15: Brioux Michael | G15: Brioux | H15: Brioux
A16: Aubert | B16: Alain | C16: Stéphane | D16: prénom7 | F16: Boisseron Jean-Pierre | G16: Boisseron | H16: Boisseron
A17: Auberterre | B17: Patricia | C17: Luc | D17: prénom8 | F17: Perillat Jean-Pierre | G17: Perillat
A18: Auterine | B18: Luc | C18: Xavier | D18: prénom9 | F18: Allanches Jean-Pierre | G18: Allanches | H18: Allanches
A19: Auvillard | B19: Daniel | C19: Kevin | D19: prénom10 | F19: Auberterre Patricia | G19: Auberterre | H19: Auberterre
A20: Bangol | B20: Maria | C20: Michael | D20: prénom11 | F20: Lo Conte Virginia | G20: Lo
A21: Barbazan | B21: Daniel | C21: John | D21: prénom12 | F21: Auvillard Daniel | G21: Auvillard | H21: Auvillard
A22: Beauville | B22: David | C22: Jules | D22: prénom13
A23: Bessèges | B23: Sandra | C23: Pierre | D23: prénom14
A24: Biron | B24: Rose-Marie | C24: Raphaël | D24: prénom15
A25: Blanzac | B25: Raphaël | C25: Luca | D25: prénom16
A26: Boisseron | B26: Jean-Pierre | C26: Loredano | D26: prénom17
A27: Bourdeilles | B27: Martin | C27: Laurent | D27: prénom18
A28: Branne | B28: Lauren | C28: Keith | D28: prénom19
A29: Brioux | B29: Michael | C29: David | D29: prénom20
A30: Brossac | B30: Helène | C30: Nathan | D30: prénom21
A31: Bugue | B31: Sam | C31: Mahel | D31: prénom22
A34: Fichier 2 - reçu chaque semaine
A35: Nom | B35: Prénom | C35: Fils de | D35: Epouse de
A36: Bessèges Sandra
A37: Aubert Alain
A38: De Nardo Jael
A39: Bugue Sam
A40: Folch Martine
A41: Brioux Michael
A42: Boisseron Jean-Pierre
A43: Perillat Jean-Pierre
A44: Allanches Jean-Pierre
A45: Auberterre Patricia
A46: Lo Conte Virginia
A47: Auvillard Daniel

Sheet Dates-et-texte
A8: Voici ce que l'on veut : | B8: Imprimé le "date du jour automatique" dans la même cellule !
B10: A VOUS !!!!!
A15: imprimé le 21.10.2013 | B15: saisie et CTRL ; | C15: La saisie et le raccourci dans la même cellule ne pose aucun problème
C16: le seul hic : pas de mise à jour automatique !!!
A18: imprimé le AUJOURDHUI() | B18: saisie et AUJOURDHUI() | C18: La fonction est ignorée !
A21: =CONCATENATE("imprimé le ",TODAY()) -> imprimé le 44750 | B21: concatener : =CONCATENER("imprimé le ";AUJOURDHUI()) | C21: Fonctionne mais le résultat est un numéro de série ! Et formater la cellule en date ne sert à rien !!!
A24: =CONCATENATE("imprimé le ",DAY(TODAY()),".",MONTH(TODAY()),".",YEAR(TODAY())) -> imprimé le 8.7.2022 | B24: concatener et extraction des éléments de la date, ajout des points de séparation .....
B26: =CONCATENER("imprimé le ";JOUR(AUJOURDHUI());".";MOIS(AUJOURDHUI());".";ANNEE(AUJOURDHUI()))
A28: On peut aussi plus simplement saisir la fonction =AUJOURDHUI() puis appliquer un format perso comme "imprimé le " dd.mm.aaaa
A29: Mais c'était le plaisir d'utiliser les fonctions CONCATENER, JOUR, MOI, ANNEE …. !!!

Sheet Ecartype
A2: Ecartype | B2: Additionne les écarts (haut - bas) par rapport à la moyenne des valeurs spécifiées puis prend la
B3: racine carrée de cette somme. L'indice obtenu permet d'analyser l'évolution de "l'écart" par rapport à la moyenne
B4: Exemple type : variations d'une valeur sur les marchés boursiers - volatile ou stable ?
A6: La variance : | B6: C'est la somme de tous les écarts par rapport à la moyenne
A8: Variations des actions Nestlé - Novartis - UBS et Serono
A9: Date | B9: NESTLE (NOM) - CHF | C9: NOVARTIS (NOM) - CHF | D9: UBS (NOM) - CHF | E9: SERONO B - CHF
A10: 2006-09-29 | B10: 436 | C10: 73 | D10: 74.8 | E10: 1080
A11: 2006-09-28 | B11: 436.75 | C11: 73.25 | D11: 73.6 | E11: 1080
A12: 2006-09-27 | B12: 435.75 | C12: 72.8 | D12: 73.5 | E12: 1080
A13: 2006-09-26 | B13: 436.75 | C13: 72.4 | D13: 73.75 | E13: 1079
A14: 2006-09-25 | B14: 430 | C14: 71.75 | D14: 72.75 | E14: 1080
A15: 2006-09-22 | B15: 430.75 | C15: 72 | D15: 72.95 | E15: 1076
A16: 2006-09-21 | B16: 434 | C16: 72.4 | D16: 73.7 | E16: 1076
A17: 2006-09-20 | B17: 434.5 | C17: 72.5 | D17: 72.7 | E17: 915
A18: 2006-09-19 | B18: 429 | C18: 71.25 | D18: 71.6 | E18: 906
A19: 2006-09-18 | B19: 429.25 | C19: 71.65 | D19: 72.2 | E19: 915
A20: 2006-09-15 | B20: 428.5 | C20: 71.75 | D20: 71.9 | E20: 883.5
A21: 2006-09-14 | B21: 428 | C21: 71.35 | D21: 70.85 | E21: 871.5
A22: 2006-09-13 | B22: 429.25 | C22: 71.4 | D22: 71.15 | E22: 879.5
A23: 2006-09-12 | B23: 430.5 | C23: 71.1 | D23: 70.7 | E23: 872.5
A24: 2006-09-11 | B24: 428 | C24: 70.2 | D24: 69.85 | E24: 863.5
A25: 2006-09-08 | B25: 429.5 | C25: 69.85 | D25: 70.2 | E25: 862.5
A26: 2006-09-07 | B26: 425.75 | C26: 69.5 | D26: 70.1 | E26: 856
A27: 2006-09-06 | B27: 423.25 | C27: 69.6 | D27: 70.5 | E27: 855
A28: 2006-09-05 | B28: 423.5 | C28: 70.25 | D28: 71.3 | E28: 862.5
A29: 2006-09-04 | B29: 426.25 | C29: 70.75 | D29: 70.8 | E29: 865
A30: 2006-09-01 | B30: 425.25 | C30: 70.3 | D30: 70.4 | E30: 863.5
A31: 2006-08-31 | B31: 423.25 | C31: 70.25 | D31: 69.65 | E31: 858
A32: 2006-08-30 | B32: 423.75 | C32: 70.65 | D32: 69.9 | E32: 851
A33: 2006-08-29 | B33: 423.5 | C33: 70.5 | D33: 69.7 | E33: 848
A34: 2006-08-28 | B34: 421 | C34: 70.1 | D34: 69.7 | E34: 850
A35: 2006-08-25 | B35: 420 | C35: 70.2 | D35: 69.1 | E35: 841
A36: 2006-08-24 | B36: 418.75 | C36: 70.6 | D36: 68.85 | E36: 843
A37: 2006-08-23 | B37: 417.75 | C37: 70.3 | D37: 69.25 | E37: 843
A38: 2006-08-22 | B38: 408.5 | C38: 70.1 | D38: 70.05 | E38: 839
A39: 2006-08-21 | B39: 402.75 | C39: 69.95 | D39: 70.05 | E39: 839
A40: 2006-08-18 | B40: 404.75 | C40: 70.15 | D40: 70.35 | E40: 842
A41: 2006-08-17 | B41: 407.25 | C41: 70.3 | D41: 71 | E41: 836
A42: 2006-08-16 | B42: 409.75 | C42: 70.1 | D42: 69.7 | E42: 837
A43: 2006-08-15 | B43: 411 | C43: 69.95 | D43: 68.3 | E43: 837
A44: 2006-08-14 | B44: 408 | C44: 69.25 | D44: 66.05 | E44: 839.5
A45: 2006-08-11 | B45: 408 | C45: 68.8 | D45: 65.7 | E45: 830.5
A46: 2006-08-10 | B46: 406.75 | C46: 68.3 | D46: 65.3 | E46: 823
A47: 2006-08-09 | B47: 405.75 | C47: 68.75 | D47: 65.65 | E47: 824.5
A48: 2006-08-08 | B48: 401.75 | C48: 67.8 | D48: 64.95 | E48: 811
A49: 2006-08-07 | B49: 398 | C49: 68 | D49: 65.45 | E49: 810
A50: 2006-08-04 | B50: 405.5 | C50: 68.75 | D50: 66.3 | E50: 820
A51: 2006-08-03 | B51: 402.75 | C51: 68 | D51: 66.25 | E51: 814
A52: 2006-08-02 | B52: 407.25 | C52: 68.6 | D52: 66.75 | E52: 830
A53: 2006-08-01 | B53: 403.25 | C53: 69.9 | D53: 66.95 | E53: 832.5
A54: Total | B54: =SUBTOTAL(107,B10:B53) -> 11.76316118 | C54: =SUBTOTAL(107,C10:C53) -> 1.383538738 | D54: =SUBTOTAL(107,D10:D53) -> 2.602351707 | E54: =SUBTOTAL(107,E10:E53) -> 87.73173783
C55: Novartis plus stable que UBS
A58: Plus fiable si les valeurs analysées sont prises sur un laps de temps plus long : ici de 2003 à 2006
A60: Date | B60: NESTLE (NOM) - CHF | C60: NOVARTIS (NOM) - CHF | D60: UBS (NOM) - CHF | E60: SERONO B - CHF
A61: 2006-07-31 | B61: 403.25 | C61: 69.9 | D61: 66.95 | E61: 832.5
A62: 2006-07-28 | B62: 403 | C62: 69.6 | D62: 67.2 | E62: 830
A63: 2006-07-27 | B63: 399.25 | C63: 69.15 | D63: 66.3 | E63: 820
A64: 2006-07-26 | B64: 397.5 | C64: 69.5 | D64: 64.8 | E64: 840
A65: 2006-07-25 | B65: 397 | C65: 69.15 | D65: 64.65 | E65: 825
A66: 2006-07-24 | B66: 398.5 | C66: 69.55 | D66: 64.75 | E66: 819
A67: 2006-07-21 | B67: 392 | C67: 68.2 | D67: 63.4 | E67: 808.5
A68: 2006-07-20 | B68: 391.5 | C68: 67.9 | D68: 64 | E68: 807.5
A69: 2006-07-19 | B69: 391.25 | C69: 68 | D69: 63.4 | E69: 814.5
A70: 2006-07-18 | B70: 387 | C70: 67.6 | D70: 60.95 | E70: 803.5
A71: 2006-07-17 | B71: 391.25 | C71: 67.55 | D71: 61.05 | E71: 801.5
A72: 2006-07-14 | B72: 386 | C72: 67.15 | D72: 62.1 | E72: 804.5
A73: 2006-07-13 | B73: 383.5 | C73: 68.1 | D73: 63.1 | E73: 813.5
A74: 2006-07-12 | B74: 385 | C74: 68.75 | D74: 64.9 | E74: 835.5
A75: 2006-07-11 | B75: 382.75 | C75: 68.3 | D75: 65.3 | E75: 824
A76: 2006-07-10 | B76: 381.75 | C76: 67.65 | D76: 66.6 | E76: 821.5
A77: 2006-07-07 | B77: 382.75 | C77: 66.8 | D77: 66.3 | E77: 827
A78: 2006-07-06 | B78: 381 | C78: 67.2 | D78: 67.45 | E78: 838
A79: 2006-07-05 | B79: 381.75 | C79: 66.6 | D79: 67.2 | E79: 841.5
A80: 2006-07-04 | B80: 382 | C80: 67.35 | D80: 67.9 | E80: 848
A81: 2006-07-03 | B81: 383.25 | C81: 66.75 | D81: 67.95 | E81: 848.5
A82: 2006-06-30 | B82: 384 | C82: 66.2 | D82: 67 | E82: 844.5
A83: 2006-06-29 | B83: 378.5 | C83: 65.75 | D83: 65.95 | E83: 844
A84: 2006-06-28 | B84: 376 | C84: 64.7 | D84: 65.3 | E84: 830.5
A85: 2006-06-27 | B85: 372.75 | C85: 64.6 | D85: 65.35 | E85: 820
A86: 2006-06-26 | B86: 374.75 | C86: 65.6 | D86: 65.45 | E86: 812
A87: 2006-06-23 | B87: 375 | C87: 65.6 | D87: 65.7 | E87: 796.5
A88: 2006-06-22 | B88: 375 | C88: 65.1 | D88: 65.95 | E88: 788.5
A89: 2006-06-21 | B89: 373 | C89: 64.65 | D89: 65.25 | E89: 788.5
A90: 2006-06-20 | B90: 370.5 | C90: 64.75 | D90: 64.75 | E90: 794.5
A91: 2006-06-19 | B91: 371.25 | C91: 64.45 | D91: 64.2 | E91: 791.5
A92: 2006-06-16 | B92: 368.75 | C92: 64.2 | D92: 63.1 | E92: 799
A93: 2006-06-15 | B93: 368 | C93: 64.3 | D93: 63.85 | E93: 796.5
A94: 2006-06-14 | B94: 360.25 | C94: 64.3 | D94: 62.05 | E94: 779
A95: 2006-06-13 | B95: 359 | C95: 64.7 | D95: 61.9 | E95: 778.5
A96: 2006-06-12 | B96: 365.5 | C96: 65.7 | D96: 64.3 | E96: 791.5
A97: 2006-06-09 | B97: 366.25 | C97: 66.4 | D97: 66.05 | E97: 802
A98: 2006-06-08 | B98: 362.25 | C98: 66 | D98: 65.2 | E98: 799
A99: 2006-06-07 | B99: 366.75 | C99: 67.25 | D99: 67.75 | E99: 807
A100: 2006-06-06 | B100: 360 | C100: 66.9 | D100: 67.4 | E100: 796
A101: 2006-06-05 | B101: 365.5 | C101: 68 | D101: 69.7 | E101: 785.5
A102: 2006-06-02 | B102: 365.5 | C102: 68 | D102: 69.7 | E102: 785.5
A103: 2006-06-01 | B103: 363.75 | C103: 67.6 | D103: 69.75 | E103: 772.5
A104: 2006-05-31 | B104: 363.5 | C104: 67.55 | D104: 68.9 | E104: 772.5
A105: 2006-05-30 | B105: 362.25 | C105: 67.35 | D105: 67.8 | E105: 781
A106: 2006-05-29 | B106: 367 | C106: 68.45 | D106: 69.75 | E106: 790
A107: 2006-05-26 | B107: 367.75 | C107: 68.9 | D107: 70 | E107: 787.5
A108: 2006-05-25 | B108: 361.5 | C108: 67.35 | D108: 67.45 | E108: 780
A109: 2006-05-24 | B109: 361.5 | C109: 67.35 | D109: 67.45 | E109: 780
A110: 2006-05-23 | B110: 365.25 | C110: 68.4 | D110: 68.1 | E110: 787.5
A111: 2006-05-22 | B111: 359.75 | C111: 67.75 | D111: 66.7 | E111: 780
A112: 2006-05-19 | B112: 358.5 | C112: 68.1 | D112: 69.6 | E112: 800
A113: 2006-05-18 | B113: 360.5 | C113: 68.9 | D113: 68.1 | E113: 803.5
A114: 2006-05-17 | B114: 364 | C114: 67.9 | D114: 68.85 | E114: 807
A115: 2006-05-16 | B115: 369.75 | C115: 69.5 | D115: 71.75 | E115: 809.5
A116: 2006-05-15 | B116: 366.75 | C116: 68 | D116: 72.1 | E116: 817.5
A117: 2006-05-12 | B117: 370.25 | C117: 68.75 | D117: 72.8 | E117: 809
A118: 2006-05-11 | B118: 374.75 | C118: 69 | D118: 74.5 | E118: 829
A119: 2006-05-10 | B119: 378.75 | C119: 69.45 | D119: 74.35 | E119: 827.5
A120: 2006-05-09 | B120: 377.75 | C120: 70.05 | D120: 74.75 | E120: 836
A121: 2006-05-08 | B121: 378.5 | C121: 70.25 | D121: 75.3 | E121: 829.5
A122: 2006-05-05 | B122: 377.5 | C122: 69.95 | D122: 74.5 | E122: 828
A123: 2006-05-04 | B123: 375 | C123: 70.1 | D123: 72.25 | E123: 823
A124: 2006-05-03 | B124: 374.75 | C124: 69.95 | D124: 72.25 | E124: 826.5
A125: 2006-05-02 | B125: 380.75 | C125: 71.45 | D125: 72.6 | E125: 825.5
A126: 2006-05-01 | B126: 378.25 | C126: 71.15 | D126: 73.5 | E126: 814
A127: 2006-04-28 | B127: 378.25 | C127: 71.15 | D127: 73.5 | E127: 814
A128: 2006-04-27 | B128: 381.5 | C128: 71.55 | D128: 73.2 | E128: 823
A129: 2006-04-26 | B129: 382.5 | C129: 71.35 | D129: 73.25 | E129: 831
A130: 2006-04-25 | B130: 381.25 | C130: 71.55 | D130: 72.7 | E130: 829.5
A131: 2006-04-24 | B131: 384 | C131: 72.4 | D131: 72.75 | E131: 840
A132: 2006-04-21 | B132: 384.5 | C132: 73.4 | D132: 72.6 | E132: 838.5
A133: 2006-04-20 | B133: 384.25 | C133: 72.5 | D133: 72.5 | E133: 835
A134: 2006-04-19 | B134: 385.5 | C134: 72.05 | D134: 73.7 | E134: 826.5
A135: 2006-04-18 | B135: 382 | C135: 71.5 | D135: 72.7 | E135: 811
A136: 2006-04-17 | B136: 382.25 | C136: 72.3 | D136: 72.5 | E136: 820
A137: 2006-04-14 | B137: 382.25 | C137: 72.3 | D137: 72.5 | E137: 820
A138: 2006-04-13 | B138: 382.25 | C138: 72.3 | D138: 72.5 | E138: 820
A139: 2006-04-12 | B139: 380.25 | C139: 72.35 | D139: 72.15 | E139: 823
A140: 2006-04-11 | B140: 387.75 | C140: 72.95 | D140: 72.05 | E140: 828
A141: 2006-04-10 | B141: 385.25 | C141: 74 | D141: 73.3 | E141: 845
A142: 2006-04-07 | B142: 381.5 | C142: 74.15 | D142: 73.25 | E142: 922
A143: 2006-04-06 | B143: 383.25 | C143: 73.8 | D143: 73.1 | E143: 920
A144: 2006-04-05 | B144: 383.75 | C144: 72.7 | D144: 72.85 | E144: 915.5
A145: 2006-04-04 | B145: 385.5 | C145: 72.45 | D145: 72.05 | E145: 916
A146: 2006-04-03 | B146: 386.75 | C146: 72.9 | D146: 72.15 | E146: 917.5
A147: 2006-03-31 | B147: 387 | C147: 72.5 | D147: 71.6 | E147: 908.5
A148: 2006-03-30 | B148: 385 | C148: 72.8 | D148: 71.2 | E148: 962.5
A149: 2006-03-29 | B149: 381.75 | C149: 72.4 | D149: 70.65 | E149: 966
A150: 2006-03-28 | B150: 382 | C150: 72.65 | D150: 70.85 | E150: 933
A151: 2006-03-27 | B151: 382.75 | C151: 72.35 | D151: 71.2 | E151: 914.5
A152: 2006-03-24 | B152: 387 | C152: 73.15 | D152: 71.9 | E152: 926
A153: 2006-03-23 | B153: 385.25 | C153: 73 | D153: 71.8 | E153: 932
A154: 2006-03-22 | B154: 386.25 | C154: 73.35 | D154: 71.5 | E154: 935
A155: 2006-03-21 | B155: 385.75 | C155: 72.5 | D155: 71.6 | E155: 926
A156: 2006-03-20 | B156: 384.75 | C156: 72.5 | D156: 71.6 | E156: 937
A157: 2006-03-17 | B157: 387.5 | C157: 73.15 | D157: 70.6 | E157: 941
A158: 2006-03-16 | B158: 388.25 | C158: 72.2 | D158: 71 | E158: 939
A159: 2006-03-15 | B159: 387 | C159: 72.4 | D159: 70.8 | E159: 939.5
A160: 2006-03-14 | B160: 390.5 | C160: 72.7 | D160: 70.9 | E160: 943
A161: 2006-03-13 | B161: 392.5 | C161: 73.45 | D161: 70.5 | E161: 928
A162: 2006-03-10 | B162: 390.75 | C162: 72.5 | D162: 69.9 | E162: 919.5
A163: 2006-03-09 | B163: 383.5 | C163: 71.5 | D163: 68.3 | E163: 926
A164: 2006-03-08 | B164: 378.25 | C164: 71.35 | D164: 68.5 | E164: 907
A165: 2006-03-07 | B165: 378 | C165: 70.55 | D165: 69.5 | E165: 936
A166: 2006-03-06 | B166: 379.25 | C166: 70.2 | D166: 70.4 | E166: 952
A167: 2006-03-03 | B167: 380 | C167: 70.5 | D167: 70.4 | E167: 929.5
A168: 2006-03-02 | B168: 381.25 | C168: 71.3 | D168: 70.3 | E168: 935.5
A169: 2006-03-01 | B169: 385 | C169: 71.55 | D169: 70.85 | E169: 950
A170: 2006-02-28 | B170: 385.75 | C170: 70.6 | D170: 69.65 | E170: 925
A171: 2006-02-27 | B171: 384 | C171: 72 | D171: 71.15 | E171: 943
A172: 2006-02-24 | B172: 381.25 | C172: 71.35 | D172: 71.55 | E172: 950
A173: 2006-02-23 | B173: 386.5 | C173: 71.15 | D173: 71.7 | E173: 949
A174: 2006-02-22 | B174: 399.5 | C174: 71.05 | D174: 72.05 | E174: 958
A175: 2006-02-21 | B175: 398 | C175: 71.25 | D175: 71.5 | E175: 952.5
A176: 2006-02-20 | B176: 390 | C176: 71.5 | D176: 71.15 | E176: 959
A177: 2006-02-17 | B177: 390 | C177: 71.45 | D177: 70.1 | E177: 981
A178: 2006-02-16 | B178: 389 | C178: 71 | D178: 70 | E178: 945
A179: 2006-02-15 | B179: 382.75 | C179: 70.9 | D179: 68.75 | E179: 939.5
A180: 2006-02-14 | B180: 378.75 | C180: 71.45 | D180: 69.45 | E180: 948.5
A181: 2006-02-13 | B181: 380 | C181: 71.4 | D181: 70.2 | E181: 959
A182: 2006-02-10 | B182: 380.5 | C182: 70.4 | D182: 69.9 | E182: 970
A183: 2006-02-09 | B183: 379.5 | C183: 70.8 | D183: 69.75 | E183: 979
A184: 2006-02-08 | B184: 378.5 | C184: 71.05 | D184: 69.1 | E184: 947.5
A185: 2006-02-07 | B185: 377.75 | C185: 71.05 | D185: 69.65 | E185: 946.5
A186: 2006-02-06 | B186: 377 | C186: 71.3 | D186: 69.95 | E186: 958.5
A187: 2006-02-03 | B187: 377.5 | C187: 72.25 | D187: 69.1 | E187: 959.5
A188: 2006-02-02 | B188: 371.75 | C188: 70.9 | D188: 68.95 | E188: 958
A189: 2006-02-01 | B189: 375 | C189: 71.5 | D189: 69.5 | E189: 970.5
A190: 2006-01-31 | B190: 375 | C190: 70.2 | D190: 69.5 | E190: 967.5
A191: 2006-01-30 | B191: 377.5 | C191: 70 | D191: 68.75 | E191: 976.5
A192: 2006-01-27 | B192: 376 | C192: 70.45 | D192: 68.9 | E192: 973
A193: 2006-01-26 | B193: 380 | C193: 70.25 | D193: 68.05 | E193: 975
A194: 2006-01-25 | B194: 373.25 | C194: 70.7 | D194: 66.7 | E194: 967.5
A195: 2006-01-24 | B195: 376.75 | C195: 70.8 | D195: 66.85 | E195: 975
A196: 2006-01-23 | B196: 379.25 | C196: 70.5 | D196: 67 | E196: 1075
A197: 2006-01-20 | B197: 380 | C197: 70.6 | D197: 66.25 | E197: 1085
A198: 2006-01-19 | B198: 390 | C198: 70.6 | D198: 67.1 | E198: 1070
A199: 2006-01-18 | B199: 387.5 | C199: 72.45 | D199: 65.55 | E199: 1075
A200: 2006-01-17 | B200: 390.75 | C200: 71.45 | D200: 66.6 | E200: 1067
A201: 2006-01-16 | B201: 395.5 | C201: 71.3 | D201: 67.25 | E201: 1077
A202: 2006-01-13 | B202: 395 | C202: 70.4 | D202: 67 | E202: 1081
A203: 2006-01-12 | B203: 396.5 | C203: 69.65 | D203: 67.3 | E203: 1075
A204: 2006-01-11 | B204: 398 | C204: 68.95 | D204: 66.85 | E204: 1088
A205: 2006-01-10 | B205: 395.25 | C205: 68.3 | D205: 65 | E205: 1075
A206: 2006-01-09 | B206: 393.5 | C206: 69.3 | D206: 65.3 | E206: 1044
... 791 more rows
